Workbook

Sheet Introduction
A1: Greater London Authority - Circular Economy Statement template
A3: How to use this spreadsheet
A4: This template should be used by planning applicants to fulfil the requirements of the Mayor's Circular Economy (CE) Statement policy set out in London Plan Policy SI 7 'Reducing waste and supporting the Circular Economy’. Before completing and submitting this spreadsheet to the GLA, applicants should read the CE statement guidance: https://www.london.gov.uk/what-we-do/planning/implementing-london-plan/london-plan-guidance-and-spgs/circular-economy-statement-guidance-consultation-draft
A6: Applicant are required to submit CE statement information to the GLA at the following three stages: pre-applicaton, outline/detailed planning submission and post-construction. Separate tabs are provided in this spreadsheet for each stage. An outline of the information required at each stage and how to submit it is provided below. Please enter information to the light yellow-coloured cells only, do not enter information in the grey cells as these will be automatically calculated. The light green-coloured cells should be completed to achieve 'pioneering' status.
A8: 1. Pre-application stage
A9: At pre-application stage, applicants are required to complete the pre-application information tab of this template which requires applicants to confirm details about the site and to provide details of the circular economy design approaches that are informing the existing and new development (including by building layer for the latter). All tables should be completed. This should be submitted to the GLA along with all other pre-application material.
A11: 2. Outline/detailed planning submission stage
A12: At this stage, applicants are required to complete the outline or detailed planning stage tab of this template (whichever is relevant) and submit it to the GLA along with their planning application. Applicants are required to complete all tables, including the Bill of Materials and Recycling and Waste Reporting tables. Please enter information to the light yellow-coloured cells only, do not enter information in the grey cells as these will be automatically calculated. The light green-coloured cells should be completed to achieve 'pioneering' status.
A14: 3. Post-construction stage
A15: At the final stage of the CE statement process, applicants should complete the post-construction tab of this template and submit it to the GLA within three months of practical completion. This will require an update of the information provided at planning submission stage and for the actual figures to be reported using actual material quantities during construction. Information should be submitted to: circulareconomystatements@london.gov.uk
A17: Queries
A18: Any queries or feedback on this template should be submitted to:
A19: circulareconomystatements@london.gov.uk
A22: Requirement by application stage (see relevant section of guidance for more information) | B22: Pre-application stage (suggested) | C22: Outline application[1] | D22: Full application / reserved matters[2] | E22: Post-construction | F22: Checklist | G22: Information Reference (Please indicate whether this has been included in the report to accompany this template or as a separate submission)
A23: CE targets (see section 4.2) | B23: Encouraged | C23: Yes | D23: Yes | E23: Yes (Performance reported) | G23: Evidence in CES template spreadsheet
A24: CE design approaches (see sections 2.3 - 2.5 and 4.3) | B24: Yes | C24: Yes | D24: Yes | E24: N/A | G24: Evidence in CES template spreadsheet
A25: CE design principles (see sections 2.1, 4.4 - 4.5) | B25: Yes | C25: No | D25: No | E25: No | G25: Evidence in CES template spreadsheet
A26: CE design principles by building layer (see sections 4.5) | B26: No | C26: Yes | D26: Yes | E26: No | G26: Evidence in CES template spreadsheet
A27: Pre-redevelopment audit (see section 4.6) | B27: Encouraged | C27: Yes | D27: Yes | E27: N/A
A28: Pre-demolition audit (see section 4.6) | B28: Encouraged | C28: Yes | D28: Yes | E28: N/A
A29: Bill of materials (including calculations – see section 4.7) | B29: No | C29: Yes (Estimated) | D29: Yes (Estimated) | E29: Yes (Actual) | G29: Evidence in CES template spreadsheet
A30: End of life strategy (see section 4.7) | B30: No | C30: No | D30: Yes | E30: Encouraged
A31: Operational waste management plan (see section 4.8) | B31: No | C31: No | D31: Yes | E31: Encouraged
A32: Recycling and waste reporting (see Section 4.9) | B32: No | C32: Yes (Estimated) | D32: Yes (Estimated) | E32: Yes (Actual) | G32: Evidence in CES template spreadsheet
A33: Lessons learnt and key achievements (see section 4.10) | B33: N/A | C33: N/A | D33: N/A | E33: Yes | G33: Evidence in CES template spreadsheet
A35: [1] Also applicable to the outline and detailed part of hybrid applications.
A36: [2] Also applicable to the outline and detailed part of hybrid applications.

Sheet Pre-App Stage
A4: Pre-Application Stage - Circular Economy Statement
C6: Project details
C7: Project name | D7: Highgate Studios
C8: Planning application reference number (if applicable)
C9: Applicant | D9: Kentish Town UK Office Propco Limited
C10: London Borough | D10: London Borough of Camden
C11: Brief description of the project | D11: ‘Demolition of existing buildings and structures at Plot A and Plot F and erection of a 7-storey building at Plot A and 4-storey building at Plot F; erection of extensions at Plot B, E, J and I on the existing buildings; external refurbishment of the existing buildings at Plot C and D; introduction of a new entrance pavilion, with cycle parking, hard and soft landscaping and associated works and plant; to provide Class E (g) use plus a range of other supporting and ancillary uses.’
C12: Author/s | D12: Savills Earth
C13: Date of assessment | D13: 2023-04-01
C14: Number of Use Types | D14: 1
C15: Use Class / Type | D15: Floor Area by use type (m2)
C16: E | D16: Use Class / Type 1 GIA
C17: Use Class / Type 2 | D17: Use Class / Type 2 GIA
C18: Use Class / Type 3 | D18: Use Class / Type 3 GIA
C19: Use Class / Type 4 | D19: Use Class / Type 4 GIA
C20: Use Class / Type 5 | D20: Use Class / Type 5 GIA
C21: Use Class / Type 6 | D21: Use Class / Type 6 GIA
C22: Use Class / Type 7 | D22: Use Class / Type 7 GIA
C23: Use Class / Type 8 | D23: Use Class / Type 8 GIA
C24: Use Class / Type 9 | D24: Use Class / Type 9 GIA
C25: Use Class / Type 10 | D25: Use Class / Type 10 GIA
C26: Use Class / Type 11 | D26: Use Class / Type 11 GIA
C27: Use Class / Type 12 | D27: Use Class / Type 12 GIA
C28: Use Class / Type 13 | D28: Use Class / Type 13 GIA
C29: Use Class / Type 14 | D29: Use Class / Type 14 GIA
C30: Use Class / Type 15 | D30: Use Class / Type 15 GIA
C31: Overall GIA (m2) | D31: =SUM(D16:D30) -> 0
B34: Circular Economy Design Approaches
B35: Circular Economy Design Approaches for Existing Structures / Buildings | D35: Applicant Response
B36: Is there an existing building on the site? | D36: Yes
B37: Is it technically feasible to retain the building(s) in whole or in part? | D37: Yes
B38: Are there any building materials or elements available on site that can be used?
B39: Is the existing building, or parts of the building, suited to the requirements for the site? | D39: Yes, in part
B40: Is it technically feasible to recover the 'residual value' of the buildings elements or materials?
B41: The preferred strategy is: | D41: NEW BUILDING
B42: The preferred strategy is: | D42: RETAIN and RETROFIT
B43: The preferred strategy is: | D43: PARTIAL RETENTION and REFURBISHMENT
B44: The preferred strategy is: | D44: DISASSEMBLE/DECONSTRUCT AND REUSE
B45: The preferred strategy is: | D45: DEMOLISH/DECONSTRUCT AND RECYCLE
B46: Circular Economy Design Approach | C46: Phase / Building / Area / Layer | D46: Strategic Response
B47: Retain and Retrofit
B48: Reconstruct
B49: Disassemble
B50: Demolish and Recycle
B51: Circular Economy Design Approaches for New Buildings, Infrastructure and Layers Over the Lifetime of the Development | D51: Applicant Response
B52: Is the whole building designed to have a short life on its current site? (e.g. less than 10 yrs) | D52: No
B53: Is there likely to be a need for building of a similar size (etc.) in different locations in the future?
B54: Is it foreseeable that the building will need to change use/function within its design life? | D54: Yes
B55: The preferred strategy is: | D55: Design for BUILDING RELOCATION
B56: The preferred strategy is: | D56: Design for COMPONENT / MATERIAL REUSE
B57: The preferred strategy is: | D57: Design for ADAPTABILITY
B58: All developments should apply the 6 Circular Economy principles, including: | D58: Designing for DISASSEMBLY and ADAPTABILITY, MATERIAL REUSE ON-SITE and/or RECYCLING should be maximised
B59: Circular Economy Design Approach | C59: Phase / Building / Area / Layer | D59: Strategic Response
B60: Building relocation
B61: Component or material reuse
B62: Adaptability
B63: Flexibility
B64: Replaceability
B65: Disassembly
B66: Longevity
B70: Circular Economy Design Principles
B71: Design Principle | E71: Phase / Building / Area / Layer | G71: Design Response
B72: Designing out waste | D72: Module A - Product Sourcing and Construction Stage
D73: Module B - In-Use Stage
D74: Module C - End-of-Life Stage
D75: Module D - Benefits and Loads Beyond the System Boundary
B76: Designing for longevity
B77: Designing for adaptability or flexibility
B78: Designing for disassembly
B79: Using systems, elements or materials that can be re-used and recycled
B82: Circular Economy Targets
B83: Circular economy targets for existing and new development | D83: Policy Requirement | E83: Target Aiming For (%) | F83: Policy Met?
B84: Demolition waste materials (non-hazardous) | D84: Minimum of 95% diverted from landfill for reuse, recycling or recovery. | F84: =IF(ISNUMBER(E84),IF(E84=95%,"Yes",IF(E84>95%,"Exceeds Policy","No")),"") -> 
B85: Excavation waste materials | D85: Minimum of 95% diverted from landfill for beneficial reuse. | F85: =IF(ISNUMBER(E85),IF(E85=95%,"Yes",IF(E85>95%,"Exceeds Policy","No")),"") -> 
B86: Construction waste materials | D86: Minimum of 95% diverted from landfill for reuse, recycling or recovery. | F86: =IF(ISNUMBER(E86),IF(E86=95%,"Yes",IF(E86>95%,"Exceeds Policy","No")),"") -> 
B87: Municipal waste | D87: Minimum 65% recycling rate by 2030. | F87: =IF(ISNUMBER(E87),IF(E87=65%,"Yes",IF(E87>65%,"Exceeds Policy","No")),"") -> 
B88: Recycled content | D88: Minimum 20% of the building material elements to be comprised of recycled or reused content. | F88: =IF(ISNUMBER(E88),IF(E88=20%,"Yes",IF(E88>20%,"Exceeds Policy","No")),"") -> 

Sheet Outline Application Stage
A4: Outline Application Stage - Circular Economy Statement
C6: Project details
C7: Project name | D7: ='Pre-App Stage'!D7 -> Highgate Studios
C8: Planning application reference number (if applicable) | D8: ='Pre-App Stage'!D8 -> 0
C9: Applicant | D9: ='Pre-App Stage'!D9 -> Kentish Town UK Office Propco Limited
C10: London Borough | D10: ='Pre-App Stage'!D10 -> London Borough of Camden
C11: Brief description of the project | D11: ='Pre-App Stage'!D11 -> ‘Demolition of existing buildings and structures at Plot A and Plot F and erection of a 7-storey building at Plot A and 4-storey building at Plot F; erection of extensions at Plot B, E, J and I on the existing buildings; external refurbishment of the existing buildings at Plot C and D; introduction of a new entrance pavilion, with cycle parking, hard and soft landscaping and associated works and plant; to provide Class E (g) use plus a range of other supporting and ancillary uses.’
C12: Author/s | D12: ='Pre-App Stage'!D12 -> Savills Earth
C13: Date of assessment | D13: 2023-04-01
C14: Number of Use Types | D14: ='Pre-App Stage'!D14 -> 1
C15: Use Class / Type | D15: Floor Area by use type (m2)
C16: Use Class / Type 1 | D16: Use Class / Type 1 GIA
C17: Use Class / Type 2 | D17: Use Class / Type 2 GIA
C18: Use Class / Type 3 | D18: Use Class / Type 3 GIA
C19: Use Class / Type 4 | D19: Use Class / Type 4 GIA
C20: Use Class / Type 5 | D20: Use Class / Type 5 GIA
C21: Use Class / Type 6 | D21: Use Class / Type 6 GIA
C22: Use Class / Type 7 | D22: Use Class / Type 7 GIA
C23: Use Class / Type 8 | D23: Use Class / Type 8 GIA
C24: Use Class / Type 9 | D24: Use Class / Type 9 GIA
C25: Use Class / Type 10 | D25: Use Class / Type 10 GIA
C26: Use Class / Type 11 | D26: Use Class / Type 11 GIA
C27: Use Class / Type 12 | D27: Use Class / Type 12 GIA
C28: Use Class / Type 13 | D28: Use Class / Type 13 GIA
C29: Use Class / Type 14 | D29: Use Class / Type 14 GIA
C30: Use Class / Type 15 | D30: Use Class / Type 15 GIA
C31: Overall GIA (m2) | D31: =SUM(D16:D30) -> 0
B34: Circular Economy Design Approaches
B35: Circular Economy Design Approaches for Existing Structures / Buildings | D35: Applicant Response
B36: Is there an existing building on the site?
B37: Is it technically feasible to retain the building(s) in whole or in part?
B38: Are there any building materials or elements available on site that can be used?
B39: Is the existing building, or parts of the building, suited to the requirements for the site?
B40: Is it technically feasible to recover the 'residual value' of the buildings elements or materials?
B41: The preferred strategy is: | D41: NEW BUILDING
B42: The preferred strategy is: | D42: RETAIN and RETROFIT
B43: The preferred strategy is: | D43: PARTIAL RETENTION and REFURBISHMENT
B44: The preferred strategy is: | D44: DISASSEMBLE/DECONSTRUCT AND REUSE
B45: The preferred strategy is: | D45: DEMOLISH/DECONSTRUCT AND RECYCLE
B46: Circular Economy Design Approach | C46: Phase/Building/Area/Layer | D46: Strategic Response
B47: Refurbish
B48: Repurpose
B49: Disassemble / Deconstruct and Reuse
B50: Demolish / Deconstruct and Recycle
B51: Circular Economy Design Approaches for New Buildings, Infrastructure and Layers Over the Lifetime of the Development | D51: Applicant Response
B52: Is the whole building designed to have a short life on its current site? (e.g. less than 10 yrs)
B53: Is there likely to be a need for building of a similar size (etc.) in different locations in the future?
B54: Is it foreseeable that the building will need to change use/function within its design life?
B55: The preferred strategy is: | D55: Design for BUILDING RELOCATION
B56: The preferred strategy is: | D56: Design for COMPONENT / MATERIAL REUSE
B57: The preferred strategy is: | D57: Design for ADAPTABILITY
B58: All developments should apply the 6 Circular Economy principles, including: | D58: Designing for DISASSEMBLY and ADAPTABILITY, MATERIAL REUSE ON-SITE and/or RECYCLING should be maximised
B59: Circular Economy Design Approach | C59: Phase/Building/Area/Layer | D59: Strategic Response
B60: Building relocation
B61: Component or material reuse
B62: Adaptability
B63: Flexibility
B64: Replaceability
B65: Disassembly
B66: Longevity
B69: Circular Economy Design Principles by Building Layer
B70: The Circular Economy Commitments table should consider where the Applicant seeks to go beyond standard practice. If there are multiple phases / buildings / areas with different measures / strategies, please specify these separately within the table below.
E71: Building Layer | M71: Summary | N71: Challenges | O71: Actions & Counter-Actions, Who and When | P71: Plan to Prove and Quantify
E72: Site | F72: Substructure | G72: Superstructure | H72: Shell/Skin | I72: Services | J72: Space | K72: Stuff | L72: Construction Stuff
B73: 1. Is it likely the layer (or components within it) will need to be moved or otherwise modified within 5-15 years, e.g. due to changing use patterns or user requirements? | E73: N/A | L73: N/A
B74: 2. Is it likely the layer (or components within it) will need to be changed, upgraded or replaced within 5-15 years, e.g. for improved performance, aesthetics | E74: N/A | L74: N/A
B75: The preferred strategy is: | E75: - | F75: =IF(F73="Yes","Design for FLEXIBILITY",IF(F74="Yes","Design for REPLACEABILITY",IF(AND(F73="No",F74="No"),"Design for ADAPTABILITY",""))) ->  | G75: =IF(G73="Yes","Design for FLEXIBILITY",IF(G74="Yes","Design for REPLACEABILITY",IF(AND(G73="No",G74="No"),"Design for ADAPTABILITY",""))) ->  | L75: -
B76: Design Principles | E76: All developments should apply the 6 circular economy principles, including designing for DISASSEMBLY and ADAPTABILITY, MATERIAL REUSE ON-SITE and/or RECYCLING should be maximised.
B77: Designing out waste | D77: Module A - Product Sourcing and Construction Stage
D78: Module B - In-Use Stage
D79: Module C - End-of-Life Stage
D80: Module D - Benefits and Loads Beyond the System Boundary
B81: Designing for longevity
B82: Designing for adaptability or flexibility
B83: Designing for disassembly
B84: Using systems, elements or materials that can be re-used and recycled
B87: Bill of Materials
B88: Please click the + symbol to the left hand side of the Bill of Materials table to view or hide the input rows for each Building Element Category. The rows for substructure and frame have been unhidden to highlight this.
C89: BUILDING ELEMENT CATEGORY - LEVEL 1 (based on the RICS New Rules of Measurement (NRM) classification system level 2 sub-elements https://www.rics.org/globalassets/rics-website/media/products/data-products/bcis-construction/bcis-elemental-standard-form-cost-analysis-4th-nrm-edition-2012.pdf) | E89: PRODUCT AND CONSTRUCTION STAGE (MODULE A) | M89: USE STAGE (MODULE B) | R89: END OF LIFE STAGE (MODULE C) | W89: BENEFITS BEYOND THE SYSTEM BOUNDARY (MODULE D)
C90: Building Element Category | E90: Material Type | F90: Material quantity (Module A) (kg) | G90: Material intensity (Module A) (kg/m2 GIA) | H90: Performance Indicator (LPG Appendix 1) | I90: Construction Waste Factor (Module A) | J90: Construction Waste (Module A) (kg) | K90: Recycled Content by mass (kg) | L90: Recycled Content by value (%) | M90: Expected Lifespan (years) | N90: Number of Replacements (over assumed 60-year period) | O90: Repair and Replacement quantities of materials (Module B) (kg) | P90: Construction Waste Factor (Module B) | Q90: Construction Waste (Module B) (kg) | R90: Design for Disassembly | S90: Assumed End of Life Scenario (Description) | T90: % Reusing | U90: % Recycling | V90: % Landfill | W90: Estimated reusable materials (kg) | X90: Estimated reusable materials intensity (kg/m2 GIA) | Y90: Estimated recyclable materials (kg) | Z90: Estimated recyclable materials intensity (kg/m2 GIA)
B91: 0.1 | C91: Demolition: Toxic/Hazardous/Contaminated Material Treatment | E91: - | F91: =SUM(F92:F106) -> 0 | G91: =IF(AND(F91<>0,$D$31<>0),F91/$D$31,0) -> 0 | H91: - | I91: - | J91: =SUM(J92:J106) -> 0 | K91: - | L91: - | M91: - | N91: - | O91: =SUM(O92:O106) -> 0 | P91: - | Q91: =SUM(Q92:Q106) -> 0 | R91: - | S91: - | T91: =IF(W91<>0,W91/($F$91+$O$91),0) -> 0 | U91: =IF(Y91<>0,Y91/($F$91+$O$91),0) -> 0 | V91: =1-T91-U91 -> 1 | W91: =SUM(W92:W106) -> 0 | X91: =IF(AND(W91<>0,$D$31<>0),W91/$D$31,0) -> 0 | Y91: =SUM(Y92:Y106) -> 0 | Z91: =IF(AND(Y91<>0,$D$31<>0),Y91/$D$31,0) -> 0
B92: 0.1 | C92: Demolition: Toxic/Hazardous/Contaminated Material Treatment | G92: =IF(AND(F92<>0,$D$31<>0),F92/$D$31,0) -> 0 | H92: - | J92: =F92*I92 -> 0 | N92: =IF(M92<>0,INT(60/M92),0) -> 0 | O92: =N92*I92 -> 0 | Q92: =P92*M92 -> 0 | T92: 0 | U92: 0 | V92: =1-T92-U92 -> 1 | W92: =T92*(F92+O92) -> 0 | X92: =IF(AND(W92<>0,$D$31<>0),W92/$D$31,0) -> 0 | Y92: =U92*(F92+O92) -> 0 | Z92: =IF(AND(Y92<>0,$D$31<>0),Y92/$D$31,0) -> 0
G93: =IF(AND(F93<>0,$D$31<>0),F93/$D$31,0) -> 0 | H93: - | J93: =F93*I93 -> 0 | N93: =IF(M93<>0,INT(60/M93),0) -> 0 | O93: =N93*I93 -> 0 | Q93: =P93*M93 -> 0 | T93: 0 | U93: 0 | V93: =1-T93-U93 -> 1 | W93: =T93*(F93+O93) -> 0 | X93: =IF(AND(W93<>0,$D$31<>0),W93/$D$31,0) -> 0 | Y93: =U93*(F93+O93) -> 0 | Z93: 0
G94: 0 | H94: - | J94: 0 | N94: 0 | O94: 0 | Q94: 0 | T94: 0 | U94: 0 | V94: 1 | W94: 0 | X94: 0 | Y94: 0 | Z94: 0
G95: 0 | H95: - | J95: 0 | N95: 0 | O95: 0 | Q95: 0 | T95: 0 | U95: 0 | V95: 1 | W95: 0 | X95: 0 | Y95: 0 | Z95: 0
G96: 0 | H96: - | J96: 0 | N96: 0 | O96: 0 | Q96: 0 | T96: 0 | U96: 0 | V96: 1 | W96: 0 | X96: 0 | Y96: 0 | Z96: 0
G97: 0 | H97: - | J97: 0 | N97: 0 | O97: 0 | Q97: 0 | T97: 0 | U97: 0 | V97: 1 | W97: 0 | X97: 0 | Y97: 0 | Z97: 0
G98: 0 | H98: - | J98: 0 | N98: 0 | O98: 0 | Q98: 0 | T98: 0 | U98: 0 | V98: 1 | W98: 0 | X98: 0 | Y98: 0 | Z98: 0
G99: 0 | H99: - | J99: 0 | N99: 0 | O99: 0 | Q99: 0 | T99: 0 | U99: 0 | V99: 1 | W99: 0 | X99: 0 | Y99: 0 | Z99: 0
G100: 0 | H100: - | J100: 0 | N100: 0 | O100: 0 | Q100: 0 | T100: 0 | U100: 0 | V100: 1 | W100: 0 | X100: 0 | Y100: 0 | Z100: 0
G101: 0 | H101: - | J101: 0 | N101: 0 | O101: 0 | Q101: 0 | T101: 0 | U101: 0 | V101: 1 | W101: 0 | X101: 0 | Y101: 0 | Z101: 0
G102: 0 | H102: - | J102: 0 | N102: 0 | O102: 0 | Q102: 0 | T102: 0 | U102: 0 | V102: 1 | W102: 0 | X102: 0 | Y102: 0 | Z102: 0
G103: 0 | H103: - | J103: 0 | N103: 0 | O103: 0 | Q103: 0 | T103: 0 | U103: 0 | V103: 1 | W103: 0 | X103: 0 | Y103: 0 | Z103: 0
G104: 0 | H104: - | J104: 0 | N104: 0 | O104: 0 | Q104: 0 | T104: 0 | U104: 0 | V104: 1 | W104: 0 | X104: 0 | Y104: 0 | Z104: 0
G105: 0 | H105: - | J105: 0 | N105: 0 | O105: 0 | Q105: 0 | T105: 0 | U105: 0 | V105: 1 | W105: 0 | X105: 0 | Y105: 0 | Z105: 0
G106: 0 | H106: - | J106: 0 | N106: 0 | O106: 0 | Q106: 0 | T106: 0 | U106: 0 | V106: 1 | W106: 0 | X106: 0 | Y106: 0 | Z106: 0
B107: 0.2 | C107: Major Demolition Works | E107: - | F107: =SUM(F108:F122) -> 0 | G107: =IF(AND(F107<>0,$D$31<>0),F107/$D$31,0) -> 0 | H107: - | I107: - | J107: =SUM(J108:J122) -> 0 | K107: - | L107: - | M107: - | N107: - | O107: =SUM(O108:O122) -> 0 | P107: - | Q107: =SUM(Q108:Q122) -> 0 | R107: - | S107: - | T107: =IF(W107<>0,W107/($F$107+$O$107),0) -> 0 | U107: =IF(Y107<>0,Y107/($F$107+$O$107),0) -> 0 | V107: =1-T107-U107 -> 1 | W107: =SUM(W108:W122) -> 0 | X107: 0 | Y107: =SUM(Y108:Y122) -> 0 | Z107: 0
B108: 0.2 | C108: Major Demolition Works | G108: =IF(AND(F108<>0,$D$31<>0),F108/$D$31,0) -> 0 | H108: - | J108: =I108*F108 -> 0 | N108: 0 | O108: 0 | Q108: 0 | T108: 0 | U108: 0 | V108: 1 | W108: 0 | X108: 0 | Y108: 0 | Z108: 0
G109: =IF(AND(F109<>0,$D$31<>0),F109/$D$31,0) -> 0 | H109: - | J109: 0 | N109: 0 | O109: 0 | Q109: 0 | T109: 0 | U109: 0 | V109: 1 | W109: 0 | X109: 0 | Y109: 0 | Z109: 0
G110: =IF(AND(F110<>0,$D$31<>0),F110/$D$31,0) -> 0 | H110: - | J110: 0 | N110: 0 | O110: 0 | Q110: 0 | T110: 0 | U110: 0 | V110: 1 | W110: 0 | X110: 0 | Y110: 0 | Z110: 0
G111: 0 | H111: - | J111: 0 | N111: 0 | O111: 0 | Q111: 0 | T111: 0 | U111: 0 | V111: 1 | W111: 0 | X111: 0 | Y111: 0 | Z111: 0
G112: 0 | H112: - | J112: 0 | N112: 0 | O112: 0 | Q112: 0 | T112: 0 | U112: 0 | V112: 1 | W112: 0 | X112: 0 | Y112: 0 | Z112: 0
G113: 0 | H113: - | J113: 0 | N113: 0 | O113: 0 | Q113: 0 | T113: 0 | U113: 0 | V113: 1 | W113: 0 | X113: 0 | Y113: 0 | Z113: 0
G114: 0 | H114: - | J114: 0 | N114: 0 | O114: 0 | Q114: 0 | T114: 0 | U114: 0 | V114: 1 | W114: 0 | X114: 0 | Y114: 0 | Z114: 0
G115: 0 | H115: - | J115: 0 | N115: 0 | O115: 0 | Q115: 0 | T115: 0 | U115: 0 | V115: 1 | W115: 0 | X115: 0 | Y115: 0 | Z115: 0
G116: 0 | H116: - | J116: 0 | N116: 0 | O116: 0 | Q116: 0 | T116: 0 | U116: 0 | V116: 1 | W116: 0 | X116: 0 | Y116: 0 | Z116: 0
G117: 0 | H117: - | J117: 0 | N117: 0 | O117: 0 | Q117: 0 | T117: 0 | U117: 0 | V117: 1 | W117: 0 | X117: 0 | Y117: 0 | Z117: 0
G118: 0 | H118: - | J118: 0 | N118: 0 | O118: 0 | Q118: 0 | T118: 0 | U118: 0 | V118: 1 | W118: 0 | X118: 0 | Y118: 0 | Z118: 0
G119: 0 | H119: - | J119: 0 | N119: 0 | O119: 0 | Q119: 0 | T119: 0 | U119: 0 | V119: 1 | W119: 0 | X119: 0 | Y119: 0 | Z119: 0
G120: 0 | H120: - | J120: 0 | N120: 0 | O120: 0 | Q120: 0 | T120: 0 | U120: 0 | V120: 1 | W120: 0 | X120: 0 | Y120: 0 | Z120: 0
G121: 0 | H121: - | J121: 0 | N121: 0 | O121: 0 | Q121: 0 | T121: 0 | U121: 0 | V121: 1 | W121: 0 | X121: 0 | Y121: 0 | Z121: 0
G122: 0 | H122: - | J122: 0 | N122: 0 | O122: 0 | Q122: 0 | T122: 0 | U122: 0 | V122: 1 | W122: 0 | X122: 0 | Y122: 0 | Z122: 0
B123: 0.3 | C123: Temporary Support to Adjacent Structures | E123: - | F123: =SUM(F124:F138) -> 0 | G123: =IF(AND(F123<>0,$D$31<>0),F123/$D$31,0) -> 0 | H123: - | I123: - | J123: =SUM(J124:J138) -> 0 | K123: - | L123: - | M123: - | N123: - | O123: =SUM(O124:O138) -> 0 | P123: - | Q123: =SUM(Q124:Q138) -> 0 | R123: - | S123: - | T123: =IF(W123<>0,W123/($F$123+$O$123),0) -> 0 | U123: =IF(Y123<>0,Y123/($F$123+$O$123),0) -> 0 | V123: 1 | W123: =SUM(W124:W138) -> 0 | X123: 0 | Y123: =SUM(Y124:Y138) -> 0 | Z123: 0
B124: 0.3 | C124: Temporary Support to Adjacent Structures | G124: =IF(AND(F124<>0,$D$31<>0),F124/$D$31,0) -> 0 | H124: - | J124: =I124*F124 -> 0 | N124: 0 | O124: 0 | Q124: 0 | T124: 0 | U124: 0 | V124: 1 | W124: 0 | X124: 0 | Y124: 0 | Z124: 0
G125: =IF(AND(F125<>0,$D$31<>0),F125/$D$31,0) -> 0 | H125: - | J125: 0 | N125: 0 | O125: 0 | Q125: 0 | T125: 0 | U125: 0 | V125: 1 | W125: 0 | X125: 0 | Y125: 0 | Z125: 0
G126: =IF(AND(F126<>0,$D$31<>0),F126/$D$31,0) -> 0 | H126: - | J126: 0 | N126: 0 | O126: 0 | Q126: 0 | T126: 0 | U126: 0 | V126: 1 | W126: 0 | X126: 0 | Y126: 0 | Z126: 0
G127: 0 | H127: - | J127: 0 | N127: 0 | O127: 0 | Q127: 0 | T127: 0 | U127: 0 | V127: 1 | W127: 0 | X127: 0 | Y127: 0 | Z127: 0
G128: 0 | H128: - | J128: 0 | N128: 0 | O128: 0 | Q128: 0 | T128: 0 | U128: 0 | V128: 1 | W128: 0 | X128: 0 | Y128: 0 | Z128: 0
G129: 0 | H129: - | J129: 0 | N129: 0 | O129: 0 | Q129: 0 | T129: 0 | U129: 0 | V129: 1 | W129: 0 | X129: 0 | Y129: 0 | Z129: 0
G130: 0 | H130: - | J130: 0 | N130: 0 | O130: 0 | Q130: 0 | T130: 0 | U130: 0 | V130: 1 | W130: 0 | X130: 0 | Y130: 0 | Z130: 0
G131: 0 | H131: - | J131: 0 | N131: 0 | O131: 0 | Q131: 0 | T131: 0 | U131: 0 | V131: 1 | W131: 0 | X131: 0 | Y131: 0 | Z131: 0
G132: 0 | H132: - | J132: 0 | N132: 0 | O132: 0 | Q132: 0 | T132: 0 | U132: 0 | V132: 1 | W132: 0 | X132: 0 | Y132: 0 | Z132: 0
G133: 0 | H133: - | J133: 0 | N133: 0 | O133: 0 | Q133: 0 | T133: 0 | U133: 0 | V133: 1 | W133: 0 | X133: 0 | Y133: 0 | Z133: 0
G134: 0 | H134: - | J134: 0 | N134: 0 | O134: 0 | Q134: 0 | T134: 0 | U134: 0 | V134: 1 | W134: 0 | X134: 0 | Y134: 0 | Z134: 0
G135: 0 | H135: - | J135: 0 | N135: 0 | O135: 0 | Q135: 0 | T135: 0 | U135: 0 | V135: 1 | W135: 0 | X135: 0 | Y135: 0 | Z135: 0
G136: 0 | H136: - | J136: 0 | N136: 0 | O136: 0 | Q136: 0 | T136: 0 | U136: 0 | V136: 1 | W136: 0 | X136: 0 | Y136: 0 | Z136: 0
G137: 0 | H137: - | J137: 0 | N137: 0 | O137: 0 | Q137: 0 | T137: 0 | U137: 0 | V137: 1 | W137: 0 | X137: 0 | Y137: 0 | Z137: 0
G138: 0 | H138: - | J138: 0 | N138: 0 | O138: 0 | Q138: 0 | T138: 0 | U138: 0 | V138: 1 | W138: 0 | X138: 0 | Y138: 0 | Z138: 0
B139: 0.4 | C139: Specialist Ground Works | E139: - | F139: =SUM(F140:F154) -> 0 | G139: =IF(AND(F139<>0,$D$31<>0),F139/$D$31,0) -> 0 | H139: - | I139: - | J139: =SUM(J140:J154) -> 0 | K139: - | L139: - | M139: - | N139: - | O139: =SUM(O140:O154) -> 0 | P139: - | Q139: =SUM(Q140:Q154) -> 0 | R139: - | S139: - | T139: =IF(W139<>0,W139/($F$139+$O$139),0) -> 0 | U139: =IF(Y139<>0,Y139/($F$139+$O$139),0) -> 0 | V139: 1 | W139: =SUM(W140:W154) -> 0 | X139: 0 | Y139: =SUM(Y140:Y154) -> 0 | Z139: 0
B140: 0.4 | C140: Specialist Ground Works | G140: =IF(AND(F140<>0,$D$31<>0),F140/$D$31,0) -> 0 | H140: - | J140: =I140*F140 -> 0 | N140: 0 | O140: 0 | Q140: 0 | T140: 0 | U140: 0 | V140: 1 | W140: 0 | X140: 0 | Y140: 0 | Z140: 0
G141: =IF(AND(F141<>0,$D$31<>0),F141/$D$31,0) -> 0 | H141: - | J141: 0 | N141: 0 | O141: 0 | Q141: 0 | T141: 0 | U141: 0 | V141: 1 | W141: 0 | X141: 0 | Y141: 0 | Z141: 0
G142: =IF(AND(F142<>0,$D$31<>0),F142/$D$31,0) -> 0 | H142: - | J142: 0 | N142: 0 | O142: 0 | Q142: 0 | T142: 0 | U142: 0 | V142: 1 | W142: 0 | X142: 0 | Y142: 0 | Z142: 0
G143: 0 | H143: - | J143: 0 | N143: 0 | O143: 0 | Q143: 0 | T143: 0 | U143: 0 | V143: 1 | W143: 0 | X143: 0 | Y143: 0 | Z143: 0
G144: 0 | H144: - | J144: 0 | N144: 0 | O144: 0 | Q144: 0 | T144: 0 | U144: 0 | V144: 1 | W144: 0 | X144: 0 | Y144: 0 | Z144: 0
G145: 0 | H145: - | J145: 0 | N145: 0 | O145: 0 | Q145: 0 | T145: 0 | U145: 0 | V145: 1 | W145: 0 | X145: 0 | Y145: 0 | Z145: 0
G146: 0 | H146: - | J146: 0 | N146: 0 | O146: 0 | Q146: 0 | T146: 0 | U146: 0 | V146: 1 | W146: 0 | X146: 0 | Y146: 0 | Z146: 0
G147: 0 | H147: - | J147: 0 | N147: 0 | O147: 0 | Q147: 0 | T147: 0 | U147: 0 | V147: 1 | W147: 0 | X147: 0 | Y147: 0 | Z147: 0
G148: 0 | H148: - | J148: 0 | N148: 0 | O148: 0 | Q148: 0 | T148: 0 | U148: 0 | V148: 1 | W148: 0 | X148: 0 | Y148: 0 | Z148: 0
G149: 0 | H149: - | J149: 0 | N149: 0 | O149: 0 | Q149: 0 | T149: 0 | U149: 0 | V149: 1 | W149: 0 | X149: 0 | Y149: 0 | Z149: 0
G150: 0 | H150: - | J150: 0 | N150: 0 | O150: 0 | Q150: 0 | T150: 0 | U150: 0 | V150: 1 | W150: 0 | X150: 0 | Y150: 0 | Z150: 0
G151: 0 | H151: - | J151: 0 | N151: 0 | O151: 0 | Q151: 0 | T151: 0 | U151: 0 | V151: 1 | W151: 0 | X151: 0 | Y151: 0 | Z151: 0
G152: 0 | H152: - | J152: 0 | N152: 0 | O152: 0 | Q152: 0 | T152: 0 | U152: 0 | V152: 1 | W152: 0 | X152: 0 | Y152: 0 | Z152: 0
G153: 0 | H153: - | J153: 0 | N153: 0 | O153: 0 | Q153: 0 | T153: 0 | U153: 0 | V153: 1 | W153: 0 | X153: 0 | Y153: 0 | Z153: 0
G154: 0 | H154: - | J154: 0 | N154: 0 | O154: 0 | Q154: 0 | T154: 0 | U154: 0 | V154: 1 | W154: 0 | X154: 0 | Y154: 0 | Z154: 0
B155: 1 | C155: Substructure | E155: - | F155: =SUM(F156:F175) -> 0 | G155: =IF(AND(F155<>0,$D$31<>0),F155/$D$31,0) -> 0 | H155: =SUMPRODUCT((C91:D454="Substructure")*G91:G454) -> 0 | I155: - | J155: =SUM(J156:J175) -> 0 | K155: - | L155: - | M155: - | N155: - | O155: =SUM(O156:O175) -> 0 | P155: - | Q155: =SUM(Q156:Q175) -> 0 | R155: - | S155: - | T155: =IF(W155<>0,W155/($F$155+$O$155),0) -> 0 | U155: =IF(Y155<>0,Y155/($F$155+$O$155),0) -> 0 | V155: 1 | W155: =SUM(W156:W175) -> 0 | X155: 0 | Y155: =SUM(Y156:Y175) -> 0 | Z155: 0
B156: 1 | C156: Substructure | G156: =IF(AND(F156<>0,$D$31<>0),F156/$D$31,0) -> 0 | H156: - | J156: =I156*F156 -> 0 | N156: 0 | O156: 0 | Q156: 0 | T156: 0 | U156: 0 | V156: 1 | W156: 0 | X156: 0 | Y156: 0 | Z156: 0
G157: =IF(AND(F157<>0,$D$31<>0),F157/$D$31,0) -> 0 | H157: - | J157: 0 | N157: =IF(M157<>0,INT(60/M157),0) -> 0 | O157: =N157*I157 -> 0 | Q157: =P157*M157 -> 0 | T157: 0 | U157: 0 | V157: =1-T157-U157 -> 1 | W157: =T157*(F157+O157) -> 0 | X157: =IF(AND(W157<>0,$D$31<>0),W157/$D$31,0) -> 0 | Y157: =U157*(F157+O157) -> 0 | Z157: 0
G158: =IF(AND(F158<>0,$D$31<>0),F158/$D$31,0) -> 0 | H158: - | J158: 0 | N158: 0 | O158: 0 | Q158: 0 | T158: 0 | U158: 0 | V158: 1 | W158: 0 | X158: 0 | Y158: 0 | Z158: 0
G159: 0 | H159: - | J159: 0 | N159: 0 | O159: 0 | Q159: 0 | T159: 0 | U159: 0 | V159: 1 | W159: 0 | X159: 0 | Y159: 0 | Z159: 0
G160: 0 | H160: - | J160: 0 | N160: 0 | O160: 0 | Q160: 0 | T160: 0 | U160: 0 | V160: 1 | W160: 0 | X160: 0 | Y160: 0 | Z160: 0
G161: 0 | H161: - | J161: 0 | N161: 0 | O161: 0 | Q161: 0 | T161: 0 | U161: 0 | V161: 1 | W161: 0 | X161: 0 | Y161: 0 | Z161: 0
G162: 0 | H162: - | J162: 0 | N162: 0 | O162: 0 | Q162: 0 | T162: 0 | U162: 0 | V162: 1 | W162: 0 | X162: 0 | Y162: 0 | Z162: 0
G163: 0 | H163: - | J163: 0 | N163: 0 | O163: 0 | Q163: 0 | T163: 0 | U163: 0 | V163: 1 | W163: 0 | X163: 0 | Y163: 0 | Z163: 0
G164: 0 | H164: - | J164: 0 | N164: 0 | O164: 0 | Q164: 0 | T164: 0 | U164: 0 | V164: 1 | W164: 0 | X164: 0 | Y164: 0 | Z164: 0
G165: 0 | H165: - | J165: 0 | N165: 0 | O165: 0 | Q165: 0 | T165: 0 | U165: 0 | V165: 1 | W165: 0 | X165: 0 | Y165: 0 | Z165: 0
G166: 0 | H166: - | J166: 0 | N166: 0 | O166: 0 | Q166: 0 | T166: 0 | U166: 0 | V166: 1 | W166: 0 | X166: 0 | Y166: 0 | Z166: 0
G167: 0 | H167: - | J167: 0 | N167: 0 | O167: 0 | Q167: 0 | T167: 0 | U167: 0 | V167: 1 | W167: 0 | X167: 0 | Y167: 0 | Z167: 0
G168: 0 | H168: - | J168: 0 | N168: 0 | O168: 0 | Q168: 0 | T168: 0 | U168: 0 | V168: 1 | W168: 0 | X168: 0 | Y168: 0 | Z168: 0
G169: 0 | H169: - | J169: 0 | N169: 0 | O169: 0 | Q169: 0 | T169: 0 | U169: 0 | V169: 1 | W169: 0 | X169: 0 | Y169: 0 | Z169: 0
G170: =IF(AND(F170<>0,$D$31<>0),F170/$D$31,0) -> 0 | H170: - | J170: 0 | N170: 0 | O170: 0 | Q170: 0 | T170: 0 | U170: 0 | V170: 1 | W170: 0 | X170: 0 | Y170: 0 | Z170: 0
G171: =IF(AND(F171<>0,$D$31<>0),F171/$D$31,0) -> 0 | H171: - | J171: 0 | N171: 0 | O171: 0 | Q171: 0 | T171: 0 | U171: 0 | V171: 1 | W171: 0 | X171: 0 | Y171: 0 | Z171: 0
G172: =IF(AND(F172<>0,$D$31<>0),F172/$D$31,0) -> 0 | H172: - | J172: 0 | N172: 0 | O172: 0 | Q172: 0 | T172: 0 | U172: 0 | V172: 1 | W172: 0 | X172: 0 | Y172: 0 | Z172: 0
G173: 0 | H173: - | J173: 0 | N173: 0 | O173: 0 | Q173: 0 | T173: 0 | U173: 0 | V173: 1 | W173: 0 | X173: 0 | Y173: 0 | Z173: 0
G174: 0 | H174: - | J174: 0 | N174: 0 | O174: 0 | Q174: 0 | T174: 0 | U174: 0 | V174: 1 | W174: 0 | X174: 0 | Y174: 0 | Z174: 0
G175: =IF(AND(F175<>0,$D$31<>0),F175/$D$31,0) -> 0 | H175: - | J175: 0 | N175: 0 | O175: 0 | Q175: 0 | T175: 0 | U175: 0 | V175: 1 | W175: 0 | X175: 0 | Y175: 0 | Z175: 0
B176: 2.1 | C176: Superstructure: Frame | E176: - | F176: =SUM(F177:F196) -> 0 | G176: =IF(AND(F176<>0,$D$31<>0),F176/$D$31,0) -> 0 | H176: =SUMPRODUCT((C91:D454="Superstructure: Frame")*G91:G454) -> 0 | I176: - | J176: =SUM(J177:J196) -> 0 | K176: - | L176: - | M176: - | N176: - | O176: =SUM(O177:O196) -> 0 | P176: - | Q176: =SUM(Q177:Q196) -> 0 | R176: - | S176: - | T176: =IF(W176<>0,W176/($F$176+$O$176),0) -> 0 | U176: =IF(Y176<>0,Y176/($F$176+$O$176),0) -> 0 | V176: 1 | W176: =SUM(W177:W196) -> 0 | X176: 0 | Y176: =SUM(Y177:Y196) -> 0 | Z176: 0
B177: 2.1 | C177: Superstructure: Frame | G177: =IF(AND(F177<>0,$D$31<>0),F177/$D$31,0) -> 0 | H177: - | J177: =I177*F177 -> 0 | N177: 0 | O177: 0 | Q177: 0 | T177: 0 | U177: 0 | V177: 1 | W177: 0 | X177: 0 | Y177: 0 | Z177: 0
G178: =IF(AND(F178<>0,$D$31<>0),F178/$D$31,0) -> 0 | H178: - | J178: 0 | N178: 0 | O178: 0 | Q178: 0 | T178: 0 | U178: 0 | V178: 1 | W178: 0 | X178: 0 | Y178: 0 | Z178: 0
G179: =IF(AND(F179<>0,$D$31<>0),F179/$D$31,0) -> 0 | H179: - | J179: 0 | N179: 0 | O179: 0 | Q179: 0 | T179: 0 | U179: 0 | V179: 1 | W179: 0 | X179: 0 | Y179: 0 | Z179: 0
G180: 0 | H180: - | J180: 0 | N180: 0 | O180: 0 | Q180: 0 | T180: 0 | U180: 0 | V180: 1 | W180: 0 | X180: 0 | Y180: 0 | Z180: 0
G181: 0 | H181: - | J181: 0 | N181: 0 | O181: 0 | Q181: 0 | T181: 0 | U181: 0 | V181: 1 | W181: 0 | X181: 0 | Y181: 0 | Z181: 0
G182: 0 | H182: - | J182: 0 | N182: 0 | O182: 0 | Q182: 0 | T182: 0 | U182: 0 | V182: 1 | W182: 0 | X182: 0 | Y182: 0 | Z182: 0
G183: 0 | H183: - | J183: 0 | N183: 0 | O183: 0 | Q183: 0 | T183: 0 | U183: 0 | V183: 1 | W183: 0 | X183: 0 | Y183: 0 | Z183: 0
G184: 0 | H184: - | J184: 0 | N184: 0 | O184: 0 | Q184: 0 | T184: 0 | U184: 0 | V184: 1 | W184: 0 | X184: 0 | Y184: 0 | Z184: 0
G185: 0 | H185: - | J185: 0 | N185: 0 | O185: 0 | Q185: 0 | T185: 0 | U185: 0 | V185: 1 | W185: 0 | X185: 0 | Y185: 0 | Z185: 0
G186: 0 | H186: - | J186: 0 | N186: 0 | O186: 0 | Q186: 0 | T186: 0 | U186: 0 | V186: 1 | W186: 0 | X186: 0 | Y186: 0 | Z186: 0
G187: 0 | H187: - | J187: 0 | N187: 0 | O187: 0 | Q187: 0 | T187: 0 | U187: 0 | V187: 1 | W187: 0 | X187: 0 | Y187: 0 | Z187: 0
G188: 0 | H188: - | J188: 0 | N188: 0 | O188: 0 | Q188: 0 | T188: 0 | U188: 0 | V188: 1 | W188: 0 | X188: 0 | Y188: 0 | Z188: 0
G189: 0 | H189: - | J189: 0 | N189: 0 | O189: 0 | Q189: 0 | T189: 0 | U189: 0 | V189: 1 | W189: 0 | X189: 0 | Y189: 0 | Z189: 0
G190: 0 | H190: - | J190: 0 | N190: 0 | O190: 0 | Q190: 0 | T190: 0 | U190: 0 | V190: 1 | W190: 0 | X190: 0 | Y190: 0 | Z190: 0
G191: =IF(AND(F191<>0,$D$31<>0),F191/$D$31,0) -> 0 | H191: - | J191: 0 | N191: 0 | O191: 0 | Q191: 0 | T191: 0 | U191: 0 | V191: 1 | W191: 0 | X191: 0 | Y191: 0 | Z191: 0
G192: =IF(AND(F192<>0,$D$31<>0),F192/$D$31,0) -> 0 | H192: - | J192: 0 | N192: 0 | O192: 0 | Q192: 0 | T192: 0 | U192: 0 | V192: 1 | W192: 0 | X192: 0 | Y192: 0 | Z192: 0
G193: =IF(AND(F193<>0,$D$31<>0),F193/$D$31,0) -> 0 | H193: - | J193: 0 | N193: 0 | O193: 0 | Q193: 0 | T193: 0 | U193: 0 | V193: 1 | W193: 0 | X193: 0 | Y193: 0 | Z193: 0
G194: =IF(AND(F194<>0,$D$31<>0),F194/$D$31,0) -> 0 | H194: - | J194: 0 | N194: 0 | O194: 0 | Q194: 0 | T194: 0 | U194: 0 | V194: 1 | W194: 0 | X194: 0 | Y194: 0 | Z194: 0
G195: 0 | H195: - | J195: 0 | N195: 0 | O195: 0 | Q195: 0 | T195: 0 | U195: 0 | V195: 1 | W195: 0 | X195: 0 | Y195: 0 | Z195: 0
G196: 0 | H196: - | J196: 0 | N196: 0 | O196: 0 | Q196: 0 | T196: 0 | U196: 0 | V196: 1 | W196: 0 | X196: 0 | Y196: 0 | Z196: 0
B197: 2.2 | C197: Superstructure: Upper Floors | E197: - | F197: =SUM(F198:F217) -> 0 | G197: =IF(AND(F197<>0,$D$31<>0),F197/$D$31,0) -> 0 | H197: =SUMPRODUCT((C176:D459="Superstructure: Upper Floors")*G176:G459) -> 0 | I197: - | J197: =SUM(J198:J217) -> 0 | K197: - | L197: - | M197: - | N197: - | O197: =SUM(O198:O217) -> 0 | P197: - | Q197: =SUM(Q198:Q217) -> 0 | R197: - | S197: - | T197: =IF(W197<>0,W197/($F$197+$O$197),0) -> 0 | U197: =IF(Y197<>0,Y197/($F$197+$O$197),0) -> 0 | V197: 1 | W197: =SUM(W198:W217) -> 0 | X197: 0 | Y197: =SUM(Y198:Y217) -> 0 | Z197: 0
B198: 2.2 | C198: Superstructure: Upper Floors | G198: =IF(AND(F198<>0,$D$31<>0),F198/$D$31,0) -> 0 | H198: - | J198: =I198*F198 -> 0 | N198: 0 | O198: 0 | Q198: 0 | T198: 0 | U198: 0 | V198: 1 | W198: 0 | X198: 0 | Y198: 0 | Z198: 0
G199: =IF(AND(F199<>0,$D$31<>0),F199/$D$31,0) -> 0 | H199: - | J199: 0 | N199: 0 | O199: 0 | Q199: 0 | T199: 0 | U199: 0 | V199: 1 | W199: 0 | X199: 0 | Y199: 0 | Z199: 0
G200: =IF(AND(F200<>0,$D$31<>0),F200/$D$31,0) -> 0 | H200: - | J200: 0 | N200: 0 | O200: 0 | Q200: 0 | T200: 0 | U200: 0 | V200: 1 | W200: 0 | X200: 0 | Y200: 0 | Z200: 0
G201: 0 | H201: - | J201: 0 | N201: 0 | O201: 0 | Q201: 0 | T201: 0 | U201: 0 | V201: 1 | W201: 0 | X201: 0 | Y201: 0 | Z201: 0
G202: 0 | H202: - | J202: 0 | N202: 0 | O202: 0 | Q202: 0 | T202: 0 | U202: 0 | V202: 1 | W202: 0 | X202: 0 | Y202: 0 | Z202: 0
G203: 0 | H203: - | J203: 0 | N203: 0 | O203: 0 | Q203: 0 | T203: 0 | U203: 0 | V203: 1 | W203: 0 | X203: 0 | Y203: 0 | Z203: 0
G204: 0 | H204: - | J204: 0 | N204: 0 | O204: 0 | Q204: 0 | T204: 0 | U204: 0 | V204: 1 | W204: 0 | X204: 0 | Y204: 0 | Z204: 0
G205: 0 | H205: - | J205: 0 | N205: 0 | O205: 0 | Q205: 0 | T205: 0 | U205: 0 | V205: 1 | W205: 0 | X205: 0 | Y205: 0 | Z205: 0
G206: 0 | H206: - | J206: 0 | N206: 0 | O206: 0 | Q206: 0 | T206: 0 | U206: 0 | V206: 1 | W206: 0 | X206: 0 | Y206: 0 | Z206: 0
G207: 0 | H207: - | J207: 0 | N207: 0 | O207: 0 | Q207: 0 | T207: 0 | U207: 0 | V207: 1 | W207: 0 | X207: 0 | Y207: 0 | Z207: 0
G208: 0 | H208: - | J208: 0 | N208: 0 | O208: 0 | Q208: 0 | T208: 0 | U208: 0 | V208: 1 | W208: 0 | X208: 0 | Y208: 0 | Z208: 0
G209: 0 | H209: - | J209: 0 | N209: 0 | O209: 0 | Q209: 0 | T209: 0 | U209: 0 | V209: 1 | W209: 0 | X209: 0 | Y209: 0 | Z209: 0
G210: 0 | H210: - | J210: 0 | N210: 0 | O210: 0 | Q210: 0 | T210: 0 | U210: 0 | V210: 1 | W210: 0 | X210: 0 | Y210: 0 | Z210: 0
... 272 more rows

Sheet Detailed Application Stage
A4: Detailed Application Stage - Circular Economy Statement
C6: Project details
C7: Project name | D7: Highgate Studios
C8: Planning application reference number (if applicable) | D8: -
C9: Applicant | D9: Kentish Town UK Office Propco Limited
C10: London Borough | D10: London Borough of Camden (LBC)
C11: Brief description of the project | D11: ‘Demolition of existing buildings and structures at Plot A and Plot F and erection of a 7-storey building at Plot A and 4-storey building at Plot F; erection of extensions at Plot B, E, J and I on the existing buildings; external refurbishment of the existing buildings at Plot C and D; introduction of a new entrance pavilion, with cycle parking, hard and soft landscaping and associated works and plant; to provide Class E (g) use plus a range of other supporting and ancillary uses.'
C12: Author/s | D12: Savills Earth
C13: Date of assessment | D13: 2023-04-01
C14: Number of Use Types | D14: 1
C15: Use Class / Type | D15: Floor Area by use type (m2)
C16: E | D16: 33653
C17: Use Class / Type 2 | D17: Use Class / Type 2 GIA
C18: Use Class / Type 3 | D18: Use Class / Type 3 GIA
C19: Use Class / Type 4 | D19: Use Class / Type 4 GIA
C20: Use Class / Type 5 | D20: Use Class / Type 5 GIA
C21: Use Class / Type 6 | D21: Use Class / Type 6 GIA
C22: Use Class / Type 7 | D22: Use Class / Type 7 GIA
C23: Use Class / Type 8 | D23: Use Class / Type 8 GIA
C24: Use Class / Type 9 | D24: Use Class / Type 9 GIA
C25: Use Class / Type 10 | D25: Use Class / Type 10 GIA
C26: Use Class / Type 11 | D26: Use Class / Type 11 GIA
C27: Use Class / Type 12 | D27: Use Class / Type 12 GIA
C28: Use Class / Type 13 | D28: Use Class / Type 13 GIA
C29: Use Class / Type 14 | D29: Use Class / Type 14 GIA
C30: Use Class / Type 15 | D30: Use Class / Type 15 GIA
C31: Overall GIA (m2) | D31: =SUM(D16:D30) -> 33653
B34: Circular Economy Design Approaches
B35: Circular Economy Design Approaches for Existing Structures / Buildings | D35: Applicant Response
B36: Is there an existing building on the site? | D36: Yes
B37: Is it technically feasible to retain the building(s) in whole or in part? | D37: Yes
B38: Are there any building materials or elements available on site that can be used?
B39: Is the existing building, or parts of the building, suited to the requirements for the site? | D39: Yes, in part
B40: Is it technically feasible to recover the 'residual value' of the buildings elements or materials?
B41: The preferred strategy is: | D41: NEW BUILDING
B42: The preferred strategy is: | D42: RETAIN and RETROFIT
B43: The preferred strategy is: | D43: PARTIAL RETENTION and REFURBISHMENT
B44: The preferred strategy is: | D44: DISASSEMBLE/DECONSTRUCT AND REUSE
B45: The preferred strategy is: | D45: DEMOLISH/DECONSTRUCT AND RECYCLE
B46: Circular Economy Design Approach | C46: Phase/Building/Area/Layer | D46: Strategic Response
B47: Refurbish | C47: Existing buildings Plots B, E, J, I | D47: Heyne Tillet Steel have carried out comprehensive assessments of the existing structures to determine potential reuse opportunities. Our intention is that ~86% of the existing site floor area will be retained & refurbished with only plots A & F, part B, C D, E & G proposed to be demolished. These plots offer low NIA, poor quality internal spaces or building fabric are car park decks or enable a new core (D & E). It is considered that all reasonable retention is being pursued as part of development proposals.
B48: Repurpose | C48: Plots A, F and part E | D48: Plots A & F offer low NIA, poor quality space and building fabric, and feature ground floor car park decks as such repurposing them is not considered appropriate. Individual materials or building elements may be reused on or offsite, pending further investigative work in the next design stage. Pre-demolition audits will be completed on a rolling basis as the Site progresses, to identifying material types on Site and opportunities for re-use.
B49: Disassemble / Deconstruct and Reuse | C49: Plots B, E, J, I, C & D (refurbished elements only) Plots A, F and part E | D49: Wherever possible, disassembly will be prioritised over demolition so that building elements, original materials and components can be reused to maximise their lifespan. More detailed building surveys & pre-demolition audits are to be carried out in the next design stage and will investigate further reuse opportunities.
B50: Demolish / Deconstruct and Recycle | C50: Existing buildings A & F, part B, C D, E & G | D50: Existing concrete from the car park (Plot A) and existing buildings (Plot F) proposed to be demolished will be crushed and reused as piling mat/hardcore for the proposed development or elsewhere, where possible. More detailed building surveys & pre-demolition audits are to be carried out in the next design stage and will form the basis of further investigations into opportunities for material re-use. It is important to note that existing building demolition is proposed for only ~14% of the development floor area (GIA). These plots offer low NIA, poor quality space and building fabric, and feature ground floor car park decks. The remaining ~86% of the development floor area (GIA) is proposed to be retained, refurbished and in come instances extended. Non-hazardous materials removed from Site will be recycled where possible as a minimum. Opportunities for re-use off Site will be considered where possible. Our existing window re-use and recycling strategy (which forms part of a separate application for the Site) is provided as an example of our approach.
B51: Circular Economy Design Approaches for New Buildings, Infrastructure and Layers Over the Lifetime of the Development | D51: Applicant Response
B52: Is the whole building designed to have a short life on its current site? (e.g. less than 10 yrs) | D52: No
B53: Is there likely to be a need for building of a similar size (etc.) in different locations in the future? | D53: No
B54: Is it foreseeable that the building will need to change use/function within its design life? | D54: Yes
B55: The preferred strategy is: | D55: Design for BUILDING RELOCATION
B56: The preferred strategy is: | D56: Design for COMPONENT / MATERIAL REUSE
B57: The preferred strategy is: | D57: Design for ADAPTABILITY
B58: All developments should apply the 6 Circular Economy principles, including: | D58: Designing for DISASSEMBLY and ADAPTABILITY, MATERIAL REUSE ON-SITE and/or RECYCLING should be maximised
B59: Circular Economy Design Approach | C59: Phase/Building/Area/Layer | D59: Strategic Response
B60: Building relocation | C60: Plots A & F | D60: The intention is that ~86% of the existing Site floor area (measured by GIA) will be retained with only plots A & F, part B, C D, E & G proposed to be demolished. These plots offer low NIA, poor quality space and building fabric, and feature ground floor car park decks and are therefore not considered suitable for re-location. However, during disassembly/demolition, building elements, original materials and components will be reused or recycled on or off Site, where possible.
B61: Component or material reuse | C61: All plots | D61: Heyne Tillet Steel (HTS) have carried out comprehensive assessments of the existing structures to determine potential reuse opportunities. The intention is that ~86% of the existing site floor area (measured by GIA) will be retained with only plots A & F, part B, C D, E & G proposed to be demolished. Where adding new structure as extensions to existing buildings an assessment of existing structural loading specific to each building has informed the location, form and construction materials of the extensions to minimise material use. This has not only reduced material use in the extensions themselves, but detailed calculations by HTS have also minimised any structural strengthening required allowing the existing structures to be retained and strengthened only where necessary. Pre-demolition audits will also be completed on a rolling basis as the Site progresses to identifying material types on Site and opportunities for re-use. Individual materials or building elements may be reused on or offsite, pending further investigative work in the next design stage.
B62: Adaptability | C62: All plots | D62: Seen as a key criteria. The existing buildings at Highgate Studios are inherently designed to be adaptable given their previous industrial uses. Our intention is to continue to utilise Highgate Studios’ highly adaptable design by retaining a much as is reasonably possible with minimal & sympathetic extensions. For new builds & extensions the design intent is to provide a balance between longevity, future adaptability and maximum head heights and fire risk. Continuing the design philosophy of the original Highgate Studios. Material use has been optimised through detailed structural calculations by HTS during Stage 2 to limit material use whilst maximising head heights and limiting columns. Examples of opportunities being considered are as follows: > Designing open floor plan, flexible uses class spaces with optimised structure. > Collaborative Design: Involving occupants in the design process (where possible) > Plant space has been sized with spare capacity to allow for future adaptation > Accessible Design: ensures that people with varying abilities can use the space and adapt it to their needs. > Smart Building Technology such as sensors and automation > Scalable Infrastructure: Designing buildings with scalable infrastructure, > Designing for disassembly to enable spaces to be adapted without damaging material or services or creating unnecessary waste e.g. using mechanical fixings rather than adhesives.
B63: Flexibility | C63: All plots | D63: Opportunities that enable flexiblity in design are as follows: > Designing open floor plan, flexible uses class spaces with optimised structure. > Soundproofing materials in the building's design to reduce noise transfer between spaces > Adjustable lighting via building management systems. > Flexible HVAC Systems: Incorporating HVAC systems that can be easily adapted to changing needs. More informaiton is provided in the Circular Ecnomy Statement
B64: Replaceability | C64: All plots | D64: Examples of opportunities being considered are as follows: > Designing extension structures with standardised construction materials to aid disassembly and future re-use or recycling. > Mechanical and electrical systems that are easily accessible, including designing out false ceilings, ceiling access panels where necessary & accessible risers. Buried services to be kept to a minimum. > Consider modular design incorporating elements in the building that can be added or removed in sections as needed, prevent unnecessary removal of other parts not requiring replacement. > Choose materials that are readily available to make it easier to find replacements when needed > Specify standardised fixtures and finishes so that replacements can still be easily found should a like-for-like product no longer be available. > Create a material inventory for the Site so that components of the building can be identified and comparable replacements found. > Avoid using glue and adhesives in the building design, as these can make it difficult to disassemble the building in the future. > Label Components: Label each component of the building to make it easier to disassemble and recycle each part. > The use of recyclable materials in the designs e.g. such as steel or aluminium making it easier to recycle the building materials at the end of its life. > Educate the building users on the importance of disassembly and recycling, and provide information on how to properly disassemble and recycle the building materials.
B65: Disassembly | C65: All plots | D65: Examples of opportunities being considered are as follows: > Designing extension structures with standardised construction materials to aid disassembly and future re-use or recycling. > Mechanical and electrical systems that are easily accessible, including designing out false ceilings, ceiling access panels where necessary & accessible risers. Buried services to be kept to a minimum. > Consider modular design incorporating elements in the building that can be added or removed in sections as needed, prevent unnecessary removal of other parts not requiring replacement. > Choose materials that are readily available to make it easier to find replacements when needed > Specify standardised fixtures and finishes so that replacements can still be easily found should a like-for-like product no longer be available. > Create a material inventory for the Site so that components of the building can be identified and comparable replacements found. > Avoid using glue and adhesives in the building design, as these can make it difficult to disassemble the building in the future. > Label Components: Label each component of the building to make it easier to disassemble and recycle each part. > The use of recyclable materials in the designs e.g. such as steel or aluminium making it easier to recycle the building materials at the end of its life. > Educate the building users on the importance of disassembly and recycling, and provide information on how to properly disassemble and recycle the building materials.
B66: Longevity | C66: All plots | D66: Seen as a key criteria. Examples of our approach and opportunities being considered are as follows: > Designing for the occupant: Performance based outcomes for daylight, ventilation and outdoor space ensure the building provides appropriate space for users and doesn’t just design for compliance. > Green Spaces: Designing for green spaces, such as rooftop gardens or courtyards, can improve the building's environmental performance and increase its lifespan by reducing the urban heat island effect and help improve air quality. > Flexibility in Design: A building designed with flexibility in mind can adapt to different uses, occupants and changing needs over time. > Adaptive Reuse: Designing with adaptive reuse in mind can make it easier to repurpose the building in the future, reducing the need for demolition and new construction. > Durable Materials: High-quality, long-lasting materials that require minimal maintenance can reduce the need for replacements or repairs in the future. > Passive Design & Energy Efficiency: Designing for inherently low energy buildings can reduce the building's carbon footprint and operational costs , making it more adaptable to future changes. > Easy Maintenance: Ensuring that the building systems are easily accessible and maintainable can extend their lifespan and reduce repair and replacement costs. > Accessibility: Ensuring the building is accessible for all can maintain its usability over time and reduce the need for retrofitting.
B69: Circular Economy Design Principles by Building Layer
B70: The Circular Economy Commitments table should consider where the Applicant seeks to go beyond standard practice. If there are multiple phases / buildings / areas with different measures / strategies, please specify these separately within the table below.
E71: Building Layer | M71: Summary | N71: Challenges | O71: Actions & Counter-Actions, Who and When | P71: Plan to Prove and Quantify
E72: Site | F72: Substructure | G72: Superstructure | H72: Shell/Skin | I72: Services | J72: Space | K72: Stuff | L72: Construction Stuff
B73: Is it likely the layer (or components within it) will need to be moved or otherwise modified within 5-15 years, e.g. due to changing use patterns or user requirements? | E73: N/A | L73: N/A
B74: Is it likely the layer (or components within it) will need to be changed, upgraded or replaced within 5-15 years, e.g. for improved performance, aesthetics | E74: N/A | L74: N/A
B75: The preferred strategy is: | E75: - | F75: =IF(F73="Yes","Design for FLEXIBILITY",IF(F74="Yes","Design for REPLACEABILITY",IF(AND(F73="No",F74="No"),"Design for ADAPTABILITY",""))) ->  | G75: =IF(G73="Yes","Design for FLEXIBILITY",IF(G74="Yes","Design for REPLACEABILITY",IF(AND(G73="No",G74="No"),"Design for ADAPTABILITY",""))) ->  | L75: -
B76: Design Principles | E76: All developments should apply the 6 circular economy principles, including designing for DISASSEMBLY and ADAPTABILITY, MATERIAL REUSE ON-SITE and/or RECYCLING should be maximised.
B77: Designing out waste | D77: Module A - Product Sourcing and Construction Stage | E77: As a minimum, construction, demolition and excavation waste policy targets will be met; A pre-demolition audit will be undertaken at detailed design stage; based on that reuse and recycling opportunities will be identified by the project team. The relevant contractors will be required to review the opportunities for reclamation of concrete, bricks and timber including, for use during construction and upcycling for community use. Early stage whole life carbon assessment of big ticket items to provide a outcome led / performance based direction of travel. | F77: ~86% of the existing site floor area will be retained including substructure. Minimise new excavation through the limited use of basements and ensuring the design of the development responds to the slope onsite. No topsoil from site to be sent to landfill, where possible, pending the findings of the pre-demolition audit. An assessment of structural loading specific to the proposed development to identify appropriate rooftops for extension based on the structural capacity of the existing buildings. Optimised superstructure for new buildings and extensions to limit the material use in the first instance and waste. Low carbon concrete shall be specified with a cement replacement of up to 70% in the sub-structure (See Structural engineer specifications)The Pavilion building is proposed to be constructed using a CLT frame limiting substructure material & excavation. | G77: ~86% of the existing site floor area will be retained with only A & F, part B, C D, E & G to be demolished. These plots offer low NIA, poor quality space and building fabric, and feature ground floor car park decks. It is considered that all reasonable retention has been pursued as part of the development proposals. Detailed structural calculations have limited materials use in the superstructure in the first instance in line with LETI 2020 targets. Low carbon concrete shall be specified for the Plots A & F RC frames with a cement replacement of up to 50% in the super-structure (See Structural engineer specifications) Extensions shall be constructed with prefabricated steel and pre-cast concrete slabs designed to standard sizes. The Pavilion building is proposed to be constructed using a CLT frame. | H77: ~86% of the existing site floor area will be retained including building skin. New buildings A&F have been designed with a repeating façade design that could enable a prefabricated wall panel construction pending further design development. Materials and building elements will be designed to minimise the off cuts and waste and will be designed for longevity & adaptablity pending further design development. | I77: Systems & services will be designed to minimise material use wherever possible e.g. stacking similar zone types to reduce service runs. Opportunities for modular pre-fabricated design will be investigated. | J77: Finishes limited to 'showrooms' only to limit waste by avoiding strip out of virgin material by new tenants. Exposed ceilings will reduce material use and therefore waste in the first instance Internal finishing materials with high recycled content and lower embodied carbon will be incorporated, examples might include: > Plasterboard specification with >30% recycled content and low product stage carbon emissions (A1-A3) > Use of screed options with >30% recycled content and product stage carbon emissions (A1-A3) in the range of 0.084-0.056 kg CO2e/ m2) > Carpets & underlay with >90% recycled content and low product stage carbon emissions (A1-A3) | K77: Finishes limited to 'showrooms' only to limit waste by avoiding strip out of virgin material by new tenants. Opportunities will be explored further during detailed design. | L77: Registering the scheme with Considerate Construction Scheme. This will require the scheme to monitor and report construction resource use. Resource Management Plan by the relevant contractor to identify options for mitigation and track waste generated on site | M77: Design to minimise resource use in the first instance and avoid then reduce waste. Specification of higher recycled content of materials where possible; in particular on-site recycling of concrete waste. Enable off-site reuse and recycling where ever possible. | N77: Site space constraints for storage, and proximity to residential buildings could limit viability of crushing concrete on site. On-site storage constraints are a major constraint and could impact opportunities for re-use on Site. Suitable and reasonable interest from external parties could affect re-use opportunities. The level of contamination and viability of onsite reuse of crushed aggregate from existing structures is unknown. Availability of GGBS and other recycled materials within the UK, although this has been considered and alternatives potentially available at the time of construction are being considered.. Changes to specification due to cost constraints and technical viability. | O77: Structural engineer to confirm the final mix of concrete in line with GGBS & recycled content commitments. Identify structural elements that could be pre-fabricated. Incorporate these requirements within the employers requirements. Architect to actively review material selections, seek reductions in material use, specify within employers requirement with recycled content requirements when known. Design team to engage with contractors to establish a strategy for reuse and recycling of materials from existing buildings – RIBA 3+/S4. Relevant contractor to do site testing to determine how much demolition can be reused as recycled aggregate on site and reuse of any excavated soil for fill and landscaping Register the scheme with Considerate Construction Scheme. | P77: On-going sustainability champion appointment including workshops, monitoring, assessment and reporting. Circular Economy Written evidence & Whole Life Carbon Assessment Detailed design specification [to be confirmed] Relevant contractor to update the Bill of Materials and Waste generated during demolition, excavation and construction As-built Circular Economy Written evidence & Whole Life Carbon Assessment
D78: Module B - In-Use Stage | E78: Refuse stores provided with dedicated recycling volumes equal to waste, sized and with waste streams bespoke to the development. | F78: n/a | G78: n/a | H78: The proposed development implements passive energy efficiency measures and will be served by ASHP. Passive design and energy efficiency measures exceed the London Plan requirements and a total reduction in regulated emission of over 35% compared to building regulations targets is predicted. | I78: An outcome-led design approach has been adopted at an early stage to reduce in-use operational energy and emissions. At this stage strategic decisions have been based on design team experience. Performance based modelling at the next design stage will optimise the operational energy performance, and seek operational energy ratings, where possible. Proposals implement passive design & energy efficiency measures served by ASHP. Measures exceed London Plan requirements for both ‘Be Lean’ design & total regulated emissions. Water efficiency through low water use appliances targeting 12.5% reduction (BREEAM) Metering and monitoring (water & energy) via BMS will manage resource use efficiently, flag out of range values, and enable a quick response to leaks or unnecessary resource use. Hybrid VRF systems are proposed to limit the use of and leakage of refrigerant on Site. | L78: The contractor will be required to set targets and monitor energy and water use during construction. | M78: The contractor will be required to set targets and monitor energy and water use during construction. | N78: > In-use performance targets and benchmarks not being met | O78: In line with the London Plan Be Seen requirement, operational performance will be tracked and reported on. | P78: On-going sustainability champion appointment including workshops, monitoring, assessment and reporting As built specification to be confirmed upon Post-completion
D79: Module C - End-of-Life Stage | G79: Extensions shall be constructed with prefabricated steel and pre-cast concrete slabs designed to standard sizes that can e disassembled and re-used in future. | H79: A pre-fabricated facade could be designed for disassembly e.g. supported with bolted connections. The details for deconstruction are to be developed. | I79: Accessible MEP services for maintenance and replacement. Mechanical, rather than adhesive fixing, to facilitate systems being demounted and re-used or recycled, where possible | M79: Principles included that allow for disassembly. Additional studies at the next stage required to establish a greater level of detail. | O79: Architect / Façade consultant/Structural Engineer/ to actively review material selections, seek opportunities and specify within employers requirement. | P79: On-going sustainability champion appointment including workshops, monitoring, assessment and reporting. As-built Circular Economy Written evidence & Whole Life Carbon Assessment
D80: Module D - Benefits and Loads Beyond the System Boundary | E80: The project is located on previously developed land with no impact on virgin land.
B81: Designing for longevity | E81: The proposed underground drainage strategy involves a peak surface water flow rate and if the development allows for 1 in 100 year rainfall event 30% climate change. Drought resistant planting & rain gardens | F81: An assessment of structural loading of the existing buildings ensuring there ongoing use and longevity. New structure has been designed in line with Eurocodes which give a minimum design life of 50 years for building structures. It is highly likely that the concrete frame would remain serviceable for a longer period of time than this, subject to regular inspections and maintenance. | G81: The structure has been designed in line with Eurocodes which give a minimum design life of 50 years for building structures. It is highly likely that the concrete frame would remain serviceable for a longer period of time than this, subject to regular inspections and maintenance. Designing for longevity and adaptability was a key consideration when selecting suitable structural solutions | H81: The Energy Strategy details measures to enhance the existing building fabric to reduce energy demand to provide a more resilient design that is more adaptable to future changes. New buildings and extensions are designed to deliver passive design and energy efficiency beyond London Plan targets making it more adaptable to future changes. Green and brown roofs across the development help mitigate the urban heat island effect. | I81: Ease of maintenance has been considered through the services design to prevent unnecessary waste or damage to materials. Design flexibility allows services to work with future tenant fitouts Further opportunities to be explored as the design is developed during the next design stages. | J81: Engagement with existing tenants where possible to ensure spaces are aligned with their current and known future needs. Further opportunities to be explored as the design is developed during the next design stages. | K81: Further opportunities to be explored as the design is developed during the next design stages. | M81: Opportunties highlighted and incorporated where possible at this stage of the design. Further design development required to finalise the approach. | N81: Changes to specification due to cost constraints and technical viability. | O81: On-going sustainability champion appointment including design team workshops, monitoring, assessment and reporting | P81: Landscape and surface water strategy for planning Detailed design drawings at Stage 4 and specification as installed. As built drawings, surface water run-off features installed & MEP system specification on Post-completion. Asset Maintenance plans.
B82: Designing for adaptability or flexibility | F82: An assessment of structural loading of the existing buildings ensuring there ongoing use and longevity. New structure has been designed in line with Eurocodes which give a minimum design life of 50 years for building structures. It is highly likely that the concrete frame would remain serviceable for a longer period of time than this, subject to regular inspections and maintenance. | G82: Maintaining ~86% of the existing buildings (by GIA) already well designed for adaptability and flexibility. The proposed grid spacing, open plan design approach and non-load bearing walls offer greater internal flexibility for change of layouts. | H82: New buildings A & F have been designed to provide generous daylight across each floorplates and provide flexibility for future tenant fit-outs | I82: A key design consideration of services is flexibility of design, working with open floor plates and potential tenant fit-outs Spare capacity included in plant space to allow for future adaptation e.g. increased ventilation rates, or responding to warmer climate scenarios. Smart Building Technology such as sensors and automation, allows for easy adaptation and customisation of the building's systems. | J82: Including soundproofing materials in the building's design will help to reduce noise transfer between spaces, providing greater flexibility of space. | K82: Energy efficient internal equipment to minimise energy demand e.g. Lifts, lighting | M82: Opportunties highlighted and incorporated where possible at this stage of the design. Further design development required to finalise the approach. | N82: as above. | O82: On-going sustainability champion appointment including design team workshops, monitoring, assessment and reporting | P82: Submission of as built drawings, surface water run-off features installed & MEP system specification on Post-completion by the development partner
B83: Designing for disassembly | E83: Prioritise disassembly of existing structures where possible. | G83: Extensions shall be constructed with prefabricated steel and pre-cast concrete slabs designed to standard sizes and could be disassembled and re-used in future. | H83: A pre-fabricated facade could be designed for disassembly e.g. supported with bolted connections. The details for deconstruction are to be developed | I83: Mechanical and electrical systems that are easily accessible, including designing out false ceilings, ceiling access panels where necessary & accessible risers. Buried services to be kept to a minimum, minimising adhesives in favour of mechanical fittings. | J83: Further opportunities to be explored as the design is developed during the next design stages. | K83: Further opportunities to be explored as the design is developed during the next design stages. | M83: Opportunties highlighted and incorporated where possible at this stage of the design. Further design development required to finalise the approach. | N83: as above. | O83: On-going sustainablity champion appointment including design team workshops, monitoring, assessment and reporting | P83: Circular Economy Written evidence & Whole Life Carbon Assessment Detailed design specification [to be confirmed] Relevant contractor to update the Bill of Materials and Waste generated during demolition, excavation and construction As-built Circular Economy Written evidence & Whole Life Carbon Assessment
B84: Using systems, elements or materials that can be re-used and recycled | E84: 1.Reuse of concrete rubble from plots A & F for re use as a base for new concrete, a backfill material, or use as an aggregate in new concrete mixes. | F84: Reuse of concrete rubble from plots A & F for re use as a base for new concrete, a backfill material, or use as an aggregate in new concrete mixes. | G84: Extensions shall be constructed with prefabricated steel and pre-cast concrete slabs using standard sizes and could be disassembled and re-used in future. | H84: Further opportunities to be explored as the design is developed during the next design stages,. | I84: Existing ductwork to be re-used where possible. Further opportunities to be explored as the design is developed during the next design stages,. | J84: Further opportunities to be explored as the design is developed during the next design stages. | K84: Further opportunities to be explored as the design is developed during the next design stages. | L84: Reusable or recyclable materials for Site hording & temporary works where possible. | M84: Opportunties highlighted and incorporated where possible at this stage of the design. Further design development required to finalise the approach. | N84: Availability of recycled materials within the UK. Changes to specification due to cost constraints and technical viability. | O84: On-going sustainability champion appointment including design team workshops, monitoring, assessment and reporting | P84: Circular Economy Written evidence & Whole Life Carbon Assessment Detailed design specification [to be confirmed] Relevant contractor to update the Bill of Materials and Waste generated during demolition, excavation and construction As-built Circular Economy Written evidence & Whole Life Carbon Assessment
B87: Bill of Materials
B88: Please click the + symbol to the left hand side of the Bill of Materials table to view or hide the input rows for each Building Element Category. The rows for substructure and frame have been unhidden to highlight this.
C89: BUILDING ELEMENT CATEGORY - LEVEL 1 (based on the RICS New Rules of Measurement (NRM) classification system level 2 sub-elements https://www.rics.org/globalassets/rics-website/media/products/data-products/bcis-construction/bcis-elemental-standard-form-cost-analysis-4th-nrm-edition-2012.pdf) | E89: PRODUCT AND CONSTRUCTION STAGE (MODULE A) | M89: USE STAGE (MODULE B) | R89: END OF LIFE STAGE (MODULE C) | W89: BENEFITS BEYOND THE SYSTEM BOUNDARY (MODULE D)
C90: Building Element Category | E90: Material Type | F90: Material quantity (Module A) (kg) | G90: Material intensity (Module A) (kg/m2 GIA) | H90: Performance Indicator (LPG Appendix 1) | I90: Construction Waste Factor (Module A) | J90: Construction Waste (Module A) (kg) | K90: Recycled Content by mass (kg) | L90: Recycled Content by value (%) | M90: Expected Lifespan (years) | N90: Number of Replacements (over assumed 60-year period) | O90: Repair and Replacement quantities of materials (Module B) (kg) | P90: Construction Waste Factor (Module B) | Q90: Construction Waste (Module B) (kg) | R90: Design for Disassembly | S90: Assumed End of Life Scenario (Description) | T90: % Reusing | U90: % Recycling | V90: % Landfill | W90: Estimated reusable materials (kg) | X90: Estimated reusable materials intensity (kg/m2 GIA) | Y90: Estimated recyclable materials (kg) | Z90: Estimated recyclable materials intensity (kg/m2 GIA)
B91: 0.1 | C91: Demolition: Toxic/Hazardous/Contaminated Material Treatment | E91: - | F91: =SUM(F92:F106) -> 0 | G91: =IF(AND(F91<>0,$D$31<>0),F91/$D$31,0) -> 0 | H91: - | I91: - | J91: =SUM(J92:J106) -> 0 | K91: - | L91: - | M91: - | N91: - | O91: =SUM(O92:O106) -> 0 | P91: - | Q91: =SUM(Q92:Q106) -> 0 | R91: - | S91: - | T91: =IF(W91<>0,W91/($F$91+$O$91),0) -> 0 | U91: =IF(Y91<>0,Y91/($F$91+$O$91),0) -> 0 | V91: =1-T91-U91 -> 1 | W91: =SUM(W92:W106) -> 0 | X91: =IF(AND(W91<>0,$D$31<>0),W91/$D$31,0) -> 0 | Y91: =SUM(Y92:Y106) -> 0 | Z91: =IF(AND(Y91<>0,$D$31<>0),Y91/$D$31,0) -> 0
B92: 0.1 | C92: Demolition: Toxic/Hazardous/Contaminated Material Treatment | G92: =IF(AND(F92<>0,$D$31<>0),F92/$D$31,0) -> 0 | H92: - | J92: =F92*I92 -> 0 | N92: =IF(M92<>0,INT(60/M92),0) -> 0 | O92: =N92*I92 -> 0 | Q92: =P92*M92 -> 0 | T92: 0 | U92: 0 | V92: =1-T92-U92 -> 1 | W92: =T92*(F92+O92) -> 0 | X92: =IF(AND(W92<>0,$D$31<>0),W92/$D$31,0) -> 0 | Y92: =U92*(F92+O92) -> 0 | Z92: =IF(AND(Y92<>0,$D$31<>0),Y92/$D$31,0) -> 0
G93: =IF(AND(F93<>0,$D$31<>0),F93/$D$31,0) -> 0 | H93: - | J93: =F93*I93 -> 0 | N93: =IF(M93<>0,INT(60/M93),0) -> 0 | O93: =N93*I93 -> 0 | Q93: =P93*M93 -> 0 | T93: 0 | U93: 0 | V93: =1-T93-U93 -> 1 | W93: =T93*(F93+O93) -> 0 | X93: =IF(AND(W93<>0,$D$31<>0),W93/$D$31,0) -> 0 | Y93: =U93*(F93+O93) -> 0 | Z93: 0
G94: 0 | H94: - | J94: 0 | N94: 0 | O94: 0 | Q94: 0 | T94: 0 | U94: 0 | V94: 1 | W94: 0 | X94: 0 | Y94: 0 | Z94: 0
G95: 0 | H95: - | J95: 0 | N95: 0 | O95: 0 | Q95: 0 | T95: 0 | U95: 0 | V95: 1 | W95: 0 | X95: 0 | Y95: 0 | Z95: 0
G96: 0 | H96: - | J96: 0 | N96: 0 | O96: 0 | Q96: 0 | T96: 0 | U96: 0 | V96: 1 | W96: 0 | X96: 0 | Y96: 0 | Z96: 0
G97: 0 | H97: - | J97: 0 | N97: 0 | O97: 0 | Q97: 0 | T97: 0 | U97: 0 | V97: 1 | W97: 0 | X97: 0 | Y97: 0 | Z97: 0
G98: 0 | H98: - | J98: 0 | N98: 0 | O98: 0 | Q98: 0 | T98: 0 | U98: 0 | V98: 1 | W98: 0 | X98: 0 | Y98: 0 | Z98: 0
G99: 0 | H99: - | J99: 0 | N99: 0 | O99: 0 | Q99: 0 | T99: 0 | U99: 0 | V99: 1 | W99: 0 | X99: 0 | Y99: 0 | Z99: 0
G100: 0 | H100: - | J100: 0 | N100: 0 | O100: 0 | Q100: 0 | T100: 0 | U100: 0 | V100: 1 | W100: 0 | X100: 0 | Y100: 0 | Z100: 0
G101: 0 | H101: - | J101: 0 | N101: 0 | O101: 0 | Q101: 0 | T101: 0 | U101: 0 | V101: 1 | W101: 0 | X101: 0 | Y101: 0 | Z101: 0
G102: 0 | H102: - | J102: 0 | N102: 0 | O102: 0 | Q102: 0 | T102: 0 | U102: 0 | V102: 1 | W102: 0 | X102: 0 | Y102: 0 | Z102: 0
G103: 0 | H103: - | J103: 0 | N103: 0 | O103: 0 | Q103: 0 | T103: 0 | U103: 0 | V103: 1 | W103: 0 | X103: 0 | Y103: 0 | Z103: 0
G104: 0 | H104: - | J104: 0 | N104: 0 | O104: 0 | Q104: 0 | T104: 0 | U104: 0 | V104: 1 | W104: 0 | X104: 0 | Y104: 0 | Z104: 0
G105: 0 | H105: - | J105: 0 | N105: 0 | O105: 0 | Q105: 0 | T105: 0 | U105: 0 | V105: 1 | W105: 0 | X105: 0 | Y105: 0 | Z105: 0
G106: 0 | H106: - | J106: 0 | N106: 0 | O106: 0 | Q106: 0 | T106: 0 | U106: 0 | V106: 1 | W106: 0 | X106: 0 | Y106: 0 | Z106: 0
B107: 0.2 | C107: Major Demolition Works | E107: - | F107: =SUM(F108:F122) -> 0 | G107: =IF(AND(F107<>0,$D$31<>0),F107/$D$31,0) -> 0 | H107: - | I107: - | J107: =SUM(J108:J122) -> 0 | K107: - | L107: - | M107: - | N107: - | O107: =SUM(O108:O122) -> 0 | P107: - | Q107: =SUM(Q108:Q122) -> 0 | R107: - | S107: - | T107: =IF(W107<>0,W107/($F$107+$O$107),0) -> 0 | U107: =IF(Y107<>0,Y107/($F$107+$O$107),0) -> 0 | V107: =1-T107-U107 -> 1 | W107: =SUM(W108:W122) -> 0 | X107: 0 | Y107: =SUM(Y108:Y122) -> 0 | Z107: 0
B108: 0.2 | C108: Major Demolition Works | G108: =IF(AND(F108<>0,$D$31<>0),F108/$D$31,0) -> 0 | H108: - | J108: =I108*F108 -> 0 | N108: 0 | O108: 0 | Q108: 0 | T108: 0 | U108: 0 | V108: 1 | W108: 0 | X108: 0 | Y108: 0 | Z108: 0
G109: =IF(AND(F109<>0,$D$31<>0),F109/$D$31,0) -> 0 | H109: - | J109: 0 | N109: 0 | O109: 0 | Q109: 0 | T109: 0 | U109: 0 | V109: 1 | W109: 0 | X109: 0 | Y109: 0 | Z109: 0
G110: =IF(AND(F110<>0,$D$31<>0),F110/$D$31,0) -> 0 | H110: - | J110: 0 | N110: 0 | O110: 0 | Q110: 0 | T110: 0 | U110: 0 | V110: 1 | W110: 0 | X110: 0 | Y110: 0 | Z110: 0
G111: 0 | H111: - | J111: 0 | N111: 0 | O111: 0 | Q111: 0 | T111: 0 | U111: 0 | V111: 1 | W111: 0 | X111: 0 | Y111: 0 | Z111: 0
G112: 0 | H112: - | J112: 0 | N112: 0 | O112: 0 | Q112: 0 | T112: 0 | U112: 0 | V112: 1 | W112: 0 | X112: 0 | Y112: 0 | Z112: 0
G113: 0 | H113: - | J113: 0 | N113: 0 | O113: 0 | Q113: 0 | T113: 0 | U113: 0 | V113: 1 | W113: 0 | X113: 0 | Y113: 0 | Z113: 0
G114: 0 | H114: - | J114: 0 | N114: 0 | O114: 0 | Q114: 0 | T114: 0 | U114: 0 | V114: 1 | W114: 0 | X114: 0 | Y114: 0 | Z114: 0
G115: 0 | H115: - | J115: 0 | N115: 0 | O115: 0 | Q115: 0 | T115: 0 | U115: 0 | V115: 1 | W115: 0 | X115: 0 | Y115: 0 | Z115: 0
G116: 0 | H116: - | J116: 0 | N116: 0 | O116: 0 | Q116: 0 | T116: 0 | U116: 0 | V116: 1 | W116: 0 | X116: 0 | Y116: 0 | Z116: 0
G117: 0 | H117: - | J117: 0 | N117: 0 | O117: 0 | Q117: 0 | T117: 0 | U117: 0 | V117: 1 | W117: 0 | X117: 0 | Y117: 0 | Z117: 0
G118: 0 | H118: - | J118: 0 | N118: 0 | O118: 0 | Q118: 0 | T118: 0 | U118: 0 | V118: 1 | W118: 0 | X118: 0 | Y118: 0 | Z118: 0
G119: 0 | H119: - | J119: 0 | N119: 0 | O119: 0 | Q119: 0 | T119: 0 | U119: 0 | V119: 1 | W119: 0 | X119: 0 | Y119: 0 | Z119: 0
G120: 0 | H120: - | J120: 0 | N120: 0 | O120: 0 | Q120: 0 | T120: 0 | U120: 0 | V120: 1 | W120: 0 | X120: 0 | Y120: 0 | Z120: 0
G121: 0 | H121: - | J121: 0 | N121: 0 | O121: 0 | Q121: 0 | T121: 0 | U121: 0 | V121: 1 | W121: 0 | X121: 0 | Y121: 0 | Z121: 0
G122: 0 | H122: - | J122: 0 | N122: 0 | O122: 0 | Q122: 0 | T122: 0 | U122: 0 | V122: 1 | W122: 0 | X122: 0 | Y122: 0 | Z122: 0
B123: 0.3 | C123: Temporary Support to Adjacent Structures | E123: - | F123: =SUM(F124:F138) -> 0 | G123: =IF(AND(F123<>0,$D$31<>0),F123/$D$31,0) -> 0 | H123: - | I123: - | J123: =SUM(J124:J138) -> 0 | K123: - | L123: - | M123: - | N123: - | O123: =SUM(O124:O138) -> 0 | P123: - | Q123: =SUM(Q124:Q138) -> 0 | R123: - | S123: - | T123: =IF(W123<>0,W123/($F$123+$O$123),0) -> 0 | U123: =IF(Y123<>0,Y123/($F$123+$O$123),0) -> 0 | V123: 1 | W123: =SUM(W124:W138) -> 0 | X123: 0 | Y123: =SUM(Y124:Y138) -> 0 | Z123: 0
B124: 0.3 | C124: Temporary Support to Adjacent Structures | G124: =IF(AND(F124<>0,$D$31<>0),F124/$D$31,0) -> 0 | H124: - | J124: =I124*F124 -> 0 | N124: 0 | O124: 0 | Q124: 0 | T124: 0 | U124: 0 | V124: 1 | W124: 0 | X124: 0 | Y124: 0 | Z124: 0
G125: =IF(AND(F125<>0,$D$31<>0),F125/$D$31,0) -> 0 | H125: - | J125: 0 | N125: 0 | O125: 0 | Q125: 0 | T125: 0 | U125: 0 | V125: 1 | W125: 0 | X125: 0 | Y125: 0 | Z125: 0
G126: =IF(AND(F126<>0,$D$31<>0),F126/$D$31,0) -> 0 | H126: - | J126: 0 | N126: 0 | O126: 0 | Q126: 0 | T126: 0 | U126: 0 | V126: 1 | W126: 0 | X126: 0 | Y126: 0 | Z126: 0
G127: 0 | H127: - | J127: 0 | N127: 0 | O127: 0 | Q127: 0 | T127: 0 | U127: 0 | V127: 1 | W127: 0 | X127: 0 | Y127: 0 | Z127: 0
G128: 0 | H128: - | J128: 0 | N128: 0 | O128: 0 | Q128: 0 | T128: 0 | U128: 0 | V128: 1 | W128: 0 | X128: 0 | Y128: 0 | Z128: 0
G129: 0 | H129: - | J129: 0 | N129: 0 | O129: 0 | Q129: 0 | T129: 0 | U129: 0 | V129: 1 | W129: 0 | X129: 0 | Y129: 0 | Z129: 0
G130: 0 | H130: - | J130: 0 | N130: 0 | O130: 0 | Q130: 0 | T130: 0 | U130: 0 | V130: 1 | W130: 0 | X130: 0 | Y130: 0 | Z130: 0
G131: 0 | H131: - | J131: 0 | N131: 0 | O131: 0 | Q131: 0 | T131: 0 | U131: 0 | V131: 1 | W131: 0 | X131: 0 | Y131: 0 | Z131: 0
G132: 0 | H132: - | J132: 0 | N132: 0 | O132: 0 | Q132: 0 | T132: 0 | U132: 0 | V132: 1 | W132: 0 | X132: 0 | Y132: 0 | Z132: 0
G133: 0 | H133: - | J133: 0 | N133: 0 | O133: 0 | Q133: 0 | T133: 0 | U133: 0 | V133: 1 | W133: 0 | X133: 0 | Y133: 0 | Z133: 0
G134: 0 | H134: - | J134: 0 | N134: 0 | O134: 0 | Q134: 0 | T134: 0 | U134: 0 | V134: 1 | W134: 0 | X134: 0 | Y134: 0 | Z134: 0
G135: 0 | H135: - | J135: 0 | N135: 0 | O135: 0 | Q135: 0 | T135: 0 | U135: 0 | V135: 1 | W135: 0 | X135: 0 | Y135: 0 | Z135: 0
G136: 0 | H136: - | J136: 0 | N136: 0 | O136: 0 | Q136: 0 | T136: 0 | U136: 0 | V136: 1 | W136: 0 | X136: 0 | Y136: 0 | Z136: 0
G137: 0 | H137: - | J137: 0 | N137: 0 | O137: 0 | Q137: 0 | T137: 0 | U137: 0 | V137: 1 | W137: 0 | X137: 0 | Y137: 0 | Z137: 0
G138: 0 | H138: - | J138: 0 | N138: 0 | O138: 0 | Q138: 0 | T138: 0 | U138: 0 | V138: 1 | W138: 0 | X138: 0 | Y138: 0 | Z138: 0
B139: 0.4 | C139: Specialist Ground Works | E139: - | F139: =SUM(F140:F154) -> 0 | G139: =IF(AND(F139<>0,$D$31<>0),F139/$D$31,0) -> 0 | H139: - | I139: - | J139: =SUM(J140:J154) -> 0 | K139: - | L139: - | M139: - | N139: - | O139: =SUM(O140:O154) -> 0 | P139: - | Q139: =SUM(Q140:Q154) -> 0 | R139: - | S139: - | T139: =IF(W139<>0,W139/($F$139+$O$139),0) -> 0 | U139: =IF(Y139<>0,Y139/($F$139+$O$139),0) -> 0 | V139: 1 | W139: =SUM(W140:W154) -> 0 | X139: 0 | Y139: =SUM(Y140:Y154) -> 0 | Z139: 0
B140: 0.4 | C140: Specialist Ground Works | G140: =IF(AND(F140<>0,$D$31<>0),F140/$D$31,0) -> 0 | H140: - | J140: =I140*F140 -> 0 | N140: 0 | O140: 0 | Q140: 0 | T140: 0 | U140: 0 | V140: 1 | W140: 0 | X140: 0 | Y140: 0 | Z140: 0
G141: =IF(AND(F141<>0,$D$31<>0),F141/$D$31,0) -> 0 | H141: - | J141: 0 | N141: 0 | O141: 0 | Q141: 0 | T141: 0 | U141: 0 | V141: 1 | W141: 0 | X141: 0 | Y141: 0 | Z141: 0
G142: =IF(AND(F142<>0,$D$31<>0),F142/$D$31,0) -> 0 | H142: - | J142: 0 | N142: 0 | O142: 0 | Q142: 0 | T142: 0 | U142: 0 | V142: 1 | W142: 0 | X142: 0 | Y142: 0 | Z142: 0
G143: 0 | H143: - | J143: 0 | N143: 0 | O143: 0 | Q143: 0 | T143: 0 | U143: 0 | V143: 1 | W143: 0 | X143: 0 | Y143: 0 | Z143: 0
G144: 0 | H144: - | J144: 0 | N144: 0 | O144: 0 | Q144: 0 | T144: 0 | U144: 0 | V144: 1 | W144: 0 | X144: 0 | Y144: 0 | Z144: 0
G145: 0 | H145: - | J145: 0 | N145: 0 | O145: 0 | Q145: 0 | T145: 0 | U145: 0 | V145: 1 | W145: 0 | X145: 0 | Y145: 0 | Z145: 0
G146: 0 | H146: - | J146: 0 | N146: 0 | O146: 0 | Q146: 0 | T146: 0 | U146: 0 | V146: 1 | W146: 0 | X146: 0 | Y146: 0 | Z146: 0
G147: 0 | H147: - | J147: 0 | N147: 0 | O147: 0 | Q147: 0 | T147: 0 | U147: 0 | V147: 1 | W147: 0 | X147: 0 | Y147: 0 | Z147: 0
G148: 0 | H148: - | J148: 0 | N148: 0 | O148: 0 | Q148: 0 | T148: 0 | U148: 0 | V148: 1 | W148: 0 | X148: 0 | Y148: 0 | Z148: 0
G149: 0 | H149: - | J149: 0 | N149: 0 | O149: 0 | Q149: 0 | T149: 0 | U149: 0 | V149: 1 | W149: 0 | X149: 0 | Y149: 0 | Z149: 0
G150: 0 | H150: - | J150: 0 | N150: 0 | O150: 0 | Q150: 0 | T150: 0 | U150: 0 | V150: 1 | W150: 0 | X150: 0 | Y150: 0 | Z150: 0
G151: 0 | H151: - | J151: 0 | N151: 0 | O151: 0 | Q151: 0 | T151: 0 | U151: 0 | V151: 1 | W151: 0 | X151: 0 | Y151: 0 | Z151: 0
G152: 0 | H152: - | J152: 0 | N152: 0 | O152: 0 | Q152: 0 | T152: 0 | U152: 0 | V152: 1 | W152: 0 | X152: 0 | Y152: 0 | Z152: 0
G153: 0 | H153: - | J153: 0 | N153: 0 | O153: 0 | Q153: 0 | T153: 0 | U153: 0 | V153: 1 | W153: 0 | X153: 0 | Y153: 0 | Z153: 0
G154: 0 | H154: - | J154: 0 | N154: 0 | O154: 0 | Q154: 0 | T154: 0 | U154: 0 | V154: 1 | W154: 0 | X154: 0 | Y154: 0 | Z154: 0
B155: 1 | C155: Substructure | E155: - | F155: =SUM(F156:F175) -> 13103135.8 | G155: =IF(AND(F155<>0,$D$31<>0),F155/$D$31,0) -> 389.3601105 | H155: =SUMPRODUCT((C91:D454="Substructure")*G91:G454) -> 396.9394122 | I155: - | J155: =SUM(J156:J175) -> 529626.0922 | K155: - | L155: - | M155: - | N155: - | O155: =SUM(O156:O175) -> 0.344 | P155: - | Q155: =SUM(Q156:Q175) -> 20.64 | R155: - | S155: - | T155: =IF(W155<>0,W155/($F$155+$O$155),0) -> 0 | U155: =IF(Y155<>0,Y155/($F$155+$O$155),0) -> 0.05247466381 | V155: 0.9475253362 | W155: =SUM(W156:W175) -> 0 | X155: 0 | Y155: =SUM(Y156:Y175) -> 687582.664 | Z155: 20.43154144
B156: 1 | C156: Substructure | E156: Ready-mix concrete, GEN3 (C20/25), C III A, (36-65%GGBS) (Hanson HCG) | F156: 255066.24 | G156: =IF(AND(F156<>0,$D$31<>0),F156/$D$31,0) -> 7.579301697 | H156: - | I156: 0.04 | J156: =I156*F156 -> 10202.6496 | K156: 0 | L156: 0 | M156: 60 | N156: 1 | O156: 0.04 | P156: 0.04 | Q156: 2.4 | R156: No | S156: Concrete crushed to aggregate (for sub-base layers), Portland Cement 200 kg / m3 | T156: 0 | U156: 0 | V156: 1 | W156: 0 | X156: 0 | Y156: 0 | Z156: 0
E157: Ready-mix concrete, normal strength, generic, C32/40 (4600/5800 PSI) with CEM III/A, 60% GGBS content in cement (300 kg/m3; 18.7 lbs/ft3 total cement) (One Click LCA 2022) | F157: 4441382.4 | G157: =IF(AND(F157<>0,$D$31<>0),F157/$D$31,0) -> 131.9758238 | H157: - | I157: 0.04 | J157: 177655.296 | K157: 320292 | L157: 0.004335 | M157: 60 | N157: =IF(M157<>0,INT(60/M157),0) -> 1 | O157: =N157*I157 -> 0.04 | P157: 0.04 | Q157: =P157*M157 -> 2.4 | R157: No | S157: Concrete crushed to aggregate (for sub-base layers), Portland Cement 300 kg / m3 | T157: 0 | U157: 0 | V157: =1-T157-U157 -> 1 | W157: =T157*(F157+O157) -> 0 | X157: =IF(AND(W157<>0,$D$31<>0),W157/$D$31,0) -> 0 | Y157: =U157*(F157+O157) -> 0 | Z157: 0
E158: Ready-mix concrete, normal strength, generic, C35/45 (5000/6500 PSI) with CEM III/A, 50% GGBS content (340 kg/m3; 21.2 lbs/ft3 total cement) | F158: 37440 | G158: =IF(AND(F158<>0,$D$31<>0),F158/$D$31,0) -> 1.112530829 | H158: - | I158: 0.04 | J158: 1497.6 | K158: 2520 | L158: 0.00092 | M158: 60 | N158: 1 | O158: 0.04 | P158: 0.04 | Q158: 2.4 | R158: No | S158: Concrete crushed to aggregate (for sub-base layers), Portland Cement 300 kg / m3 | T158: 0 | U158: 0 | V158: 1 | W158: 0 | X158: 0 | Y158: 0 | Z158: 0
E159: Ready-mix concrete, RC 32/40 (32/40 MPa), 70% Cement replacement with blast furnace slag (GGBS) | F159: 4589669.76 | G159: 136.3821876 | H159: - | I159: 0.04 | J159: 183586.7904 | K159: 386150.1 | L159: 0.00245 | M159: 60 | N159: 1 | O159: 0.04 | P159: 0.04 | Q159: 2.4 | R159: No | S159: Concrete crushed to aggregate (for sub-base layers), Portland Cement 300 kg / m3 | T159: 0 | U159: 0 | V159: 1 | W159: 0 | X159: 0 | Y159: 0 | Z159: 0
E160: Ready-mix concrete, RC 35/45 (35/45 MPa), 70% Cement replacement with blast furnace slag (GGBS) | F160: 3091994.88 | G160: 91.87872939 | H160: - | I160: 0.04 | J160: 123679.7952 | K160: 260143.8 | L160: 0.00364 | M160: 60 | N160: 1 | O160: 0.04 | P160: 0.04 | Q160: 2.4 | R160: No | S160: Concrete crushed to aggregate (for sub-base layers), Portland Cement 300 kg / m3 | T160: 0 | U160: 0 | V160: 1 | W160: 0 | X160: 0 | Y160: 0 | Z160: 0
E161: Reinforcement steel (rebar), generic, 90% recycled content, A615 | F161: 7610.01 | G161: 0.226131697 | H161: - | I161: 0.048 | J161: 365.28048 | K161: 6532.2 | L161: 0.0088 | M161: 60 | N161: 1 | O161: 0.048 | P161: 0.048 | Q161: 2.88 | R161: No | S161: Steel recycling | T161: 0 | U161: 1 | V161: 0 | W161: 0 | X161: 0 | Y161: 7610.058 | Z161: 0.2261331233
E162: Reinforcement steel (rebar), generic, 97% recycled content (typical), A615 | F162: 521894.35 | G162: 15.50810775 | H162: - | I162: 0.048 | J162: 25050.9288 | K162: 482820.71 | L162: 0.02080769231 | M162: 60 | N162: 1 | O162: 0.048 | P162: 0.048 | Q162: 2.88 | R162: No | S162: Steel recycling | T162: 0 | U162: 1 | V162: 0 | W162: 0 | X162: 0 | Y162: 521894.398 | Z162: 15.50810917
E163: Reinforcement steel (rebar), generic, 97% recycled content (typical), A615 (One Click LCA 2022) | F163: 158078.16 | G163: 4.697297715 | H163: - | I163: 0.048 | J163: 7587.75168 | K163: 146243.02 | L163: 0.03255 | M163: 60 | N163: 1 | O163: 0.048 | P163: 0.048 | Q163: 2.88 | R163: No | S163: Steel recycling | T163: 0 | U163: 1 | V163: 0 | W163: 0 | X163: 0 | Y163: 158078.208 | Z163: 4.697299141
G164: 0 | H164: - | J164: 0 | N164: 0 | O164: 0 | Q164: 0 | T164: 0 | U164: 0 | V164: 1 | W164: 0 | X164: 0 | Y164: 0 | Z164: 0
G165: 0 | H165: - | J165: 0 | N165: 0 | O165: 0 | Q165: 0 | T165: 0 | U165: 0 | V165: 1 | W165: 0 | X165: 0 | Y165: 0 | Z165: 0
G166: 0 | H166: - | J166: 0 | N166: 0 | O166: 0 | Q166: 0 | T166: 0 | U166: 0 | V166: 1 | W166: 0 | X166: 0 | Y166: 0 | Z166: 0
G167: 0 | H167: - | J167: 0 | N167: 0 | O167: 0 | Q167: 0 | T167: 0 | U167: 0 | V167: 1 | W167: 0 | X167: 0 | Y167: 0 | Z167: 0
G168: 0 | H168: - | J168: 0 | N168: 0 | O168: 0 | Q168: 0 | T168: 0 | U168: 0 | V168: 1 | W168: 0 | X168: 0 | Y168: 0 | Z168: 0
G169: 0 | H169: - | J169: 0 | N169: 0 | O169: 0 | Q169: 0 | T169: 0 | U169: 0 | V169: 1 | W169: 0 | X169: 0 | Y169: 0 | Z169: 0
G170: =IF(AND(F170<>0,$D$31<>0),F170/$D$31,0) -> 0 | H170: - | J170: 0 | N170: 0 | O170: 0 | Q170: 0 | T170: 0 | U170: 0 | V170: 1 | W170: 0 | X170: 0 | Y170: 0 | Z170: 0
G171: =IF(AND(F171<>0,$D$31<>0),F171/$D$31,0) -> 0 | H171: - | J171: 0 | N171: 0 | O171: 0 | Q171: 0 | T171: 0 | U171: 0 | V171: 1 | W171: 0 | X171: 0 | Y171: 0 | Z171: 0
G172: =IF(AND(F172<>0,$D$31<>0),F172/$D$31,0) -> 0 | H172: - | J172: 0 | N172: 0 | O172: 0 | Q172: 0 | T172: 0 | U172: 0 | V172: 1 | W172: 0 | X172: 0 | Y172: 0 | Z172: 0
G173: 0 | H173: - | J173: 0 | N173: 0 | O173: 0 | Q173: 0 | T173: 0 | U173: 0 | V173: 1 | W173: 0 | X173: 0 | Y173: 0 | Z173: 0
G174: 0 | H174: - | J174: 0 | N174: 0 | O174: 0 | Q174: 0 | T174: 0 | U174: 0 | V174: 1 | W174: 0 | X174: 0 | Y174: 0 | Z174: 0
G175: =IF(AND(F175<>0,$D$31<>0),F175/$D$31,0) -> 0 | H175: - | J175: 0 | N175: 0 | O175: 0 | Q175: 0 | T175: 0 | U175: 0 | V175: 1 | W175: 0 | X175: 0 | Y175: 0 | Z175: 0
B176: 2.1 | C176: Superstructure: Frame | E176: - | F176: =SUM(F177:F196) -> 3023797.27 | G176: =IF(AND(F176<>0,$D$31<>0),F176/$D$31,0) -> 89.85223516 | H176: =SUMPRODUCT((C91:D454="Superstructure: Frame")*G91:G454) -> 90.29517428 | I176: - | J176: =SUM(J177:J196) -> 117920.7626 | K176: - | L176: - | M176: - | N176: - | O176: =SUM(O177:O196) -> 1.123 | P176: - | Q176: =SUM(Q177:Q196) -> 52.08 | R176: - | S176: - | T176: =IF(W176<>0,W176/($F$176+$O$176),0) -> 0 | U176: =IF(Y176<>0,Y176/($F$176+$O$176),0) -> 0.331780004 | V176: 0.668219996 | W176: =SUM(W177:W196) -> 0 | X176: 0 | Y176: =SUM(Y177:Y196) -> 1003235.843 | Z176: 29.81118602
B177: 2.1 | C177: Superstructure: Frame | E177: Glue laminated timber (Glulam), 544 kg/m3, 12% (± 3%) moisture content (One Click LCA) | F177: 14906.23 | G177: =IF(AND(F177<>0,$D$31<>0),F177/$D$31,0) -> 0.4429391139 | H177: - | I177: 0.17 | J177: =I177*F177 -> 2534.0591 | K177: 0 | L177: 0 | M177: 60 | N177: 1 | O177: 0.17 | P177: 0.17 | Q177: 10.2 | R177: No | S177: Wood incineration | T177: 0 | U177: 0 | V177: 1 | W177: 0 | X177: 0 | Y177: 0 | Z177: 0
E178: Plywood, generic, 4-50 mm (0.16-1.97 in), 620 kg/m3 (38.7 lbs/ft3) | F178: 1808.85 | G178: =IF(AND(F178<>0,$D$31<>0),F178/$D$31,0) -> 0.05375003714 | H178: - | I178: 0.17 | J178: 307.5045 | K178: 0 | L178: 0 | M178: 30 | N178: 2 | O178: 0.34 | P178: 0.17 | Q178: 5.1 | R178: No | S178: Wood incineration | T178: 0 | U178: 0 | V178: 1 | W178: 0 | X178: 0 | Y178: 0 | Z178: 0
E179: Ready-mix concrete, normal strength, generic, C35/45 (5000/6500 PSI) with CEM III/A, 50% GGBS content (340 kg/m3; 21.2 lbs/ft3 total cement) | F179: 189696 | G179: =IF(AND(F179<>0,$D$31<>0),F179/$D$31,0) -> 5.636822869 | H179: - | I179: 0.04 | J179: 7587.84 | K179: 12768 | L179: 0.00069 | M179: 60 | N179: 1 | O179: 0.04 | P179: 0.04 | Q179: 2.4 | R179: No | S179: Concrete crushed to aggregate (for sub-base layers), Portland Cement 300 kg / m3 | T179: 0 | U179: 0 | V179: 1 | W179: 0 | X179: 0 | Y179: 0 | Z179: 0
E180: Ready-mix concrete, normal-strength, generic, C40/50 (5800/7300 PSI), 0% recycled binders in cement (400 kg/m3 / 24.97 lbs/ft3) | F180: 14227.2 | G180: 0.4227617152 | H180: - | I180: 0.04 | J180: 569.088 | K180: 0 | L180: 0 | M180: 60 | N180: 1 | O180: 0.04 | P180: 0.04 | Q180: 2.4 | R180: No | S180: Concrete crushed to aggregate (for sub-base layers), Portland Cement 400 kg / m3 | T180: 0 | U180: 0 | V180: 1 | W180: 0 | X180: 0 | Y180: 0 | Z180: 0
E181: Ready-mix concrete, RC 32/40 (32/40 MPa), 50% Cement replacement with blast furnace slag (GGBS) | F181: 26332.8 | G181: 0.7824800166 | H181: - | I181: 0.04 | J181: 1053.312 | K181: 1582.5 | L181: 5.8e-05 | M181: 60 | N181: 1 | O181: 0.04 | P181: 0.04 | Q181: 2.4 | R181: No | S181: Concrete crushed to aggregate (for sub-base layers), Portland Cement 300 kg / m3 | T181: 0 | U181: 0 | V181: 1 | W181: 0 | X181: 0 | Y181: 0 | Z181: 0
E182: Ready-mix concrete, RC 35/45 (35/45 MPa), 50% Cement replacement with blast furnace slag (GGBS) | F182: 1333562.88 | G182: 39.62686477 | H182: - | I182: 0.04 | J182: 53342.5152 | K182: 80142 | L182: 0.00122 | M182: 60 | N182: 1 | O182: 0.04 | P182: 0.04 | Q182: 2.4 | R182: No | S182: Concrete crushed to aggregate (for sub-base layers), Portland Cement 300 kg / m3 | T182: 0 | U182: 0 | V182: 1 | W182: 0 | X182: 0 | Y182: 0 | Z182: 0
E183: Ready-mix concrete, RC 40/50 (40/50 MPa), 50% Cement replacement with blast furnace slag (GGBS) | F183: 439296 | G183: 13.05369506 | H183: - | I183: 0.04 | J183: 17571.84 | K183: 26400 | L183: 0.00083 | M183: 60 | N183: 1 | O183: 0.04 | P183: 0.04 | Q183: 2.4 | R183: No | S183: Concrete crushed to aggregate (for sub-base layers), Portland Cement 400 kg / m3 | T183: 0 | U183: 0 | V183: 1 | W183: 0 | X183: 0 | Y183: 0 | Z183: 0
E184: Reinforcement steel (rebar), generic, 90% recycled content, A615 | F184: 600.79 | G184: 0.01785249458 | H184: - | I184: 0.048 | J184: 28.83792 | K184: 515.7 | L184: 0.0003 | M184: 60 | N184: 1 | O184: 0.048 | P184: 0.048 | Q184: 2.88 | R184: No | S184: Steel recycling | T184: 0 | U184: 1 | V184: 0 | W184: 0 | X184: 0 | Y184: 600.838 | Z184: 0.0178539209
E185: Reinforcement steel (rebar), generic, 97% recycled content (typical), A615 | F185: 80596.1 | G185: 2.394915758 | H185: - | I185: 0.048 | J185: 3868.6128 | K185: 74561.96 | L185: 0.01004666667 | M185: 60 | N185: 1 | O185: 0.048 | P185: 0.048 | Q185: 2.88 | R185: No | S185: Steel recycling | T185: 0 | U185: 1 | V185: 0 | W185: 0 | X185: 0 | Y185: 80596.148 | Z185: 2.394917184
E186: Reinforcement steel (rebar), generic, 97% recycled content (typical), A615 (One Click LCA 2022) | F186: 33699 | G186: 1.001366892 | H186: - | I186: 0.048 | J186: 1617.552 | K186: 31175.99 | L186: 0.0051 | M186: 60 | N186: 1 | O186: 0.048 | P186: 0.048 | Q186: 2.88 | R186: No | S186: Steel recycling | T186: 0 | U186: 1 | V186: 0 | W186: 0 | X186: 0 | Y186: 33699.048 | Z186: 1.001368318
E187: Structural laminated veneer lumber (LVL), 570 kg/m3, moisture content 13 %, NelsonPine® LVL, NP Frame LVL 8, NP Frame LVL 11, NP Frame LVL 13, NP Form LVL 9, NP Form LVL 11, NP Boxxa, NP Plank (Nelson Pine Industries Ltd) | F187: 731.71 | G187: 0.02174278668 | H187: - | I187: 0.17 | J187: 124.3907 | K187: 0 | L187: 0 | M187: 60 | N187: 1 | O187: 0.17 | P187: 0.17 | Q187: 10.2 | R187: No | S187: Wood incineration | T187: 0 | U187: 0 | V187: 1 | W187: 0 | X187: 0 | Y187: 0 | Z187: 0
E188: Structural steel profiles, generic, 20% recycled content, I, H, U, L, and T sections, S235, S275 and S355 | F188: 251461.64 | G188: 7.472190889 | H188: - | I188: 0.033 | J188: 8298.23412 | K188: 48685.7 | L188: 0.007085714286 | M188: 60 | N188: 1 | O188: 0.033 | P188: 0.033 | Q188: 1.98 | R188: No | S188: Steel recycling | T188: 0 | U188: 1 | V188: 0 | W188: 0 | X188: 0 | Y188: 251461.673 | Z188: 7.47219187
E189: Structural steel profiles, generic, 40% recycled content, I, H, U, L, and T sections, S235, S275 and S355 | F189: 635992.79 | G189: 18.89854664 | H189: - | I189: 0.033 | J189: 20987.76207 | K189: 246270.2 | L189: 0.03863333333 | M189: 60 | N189: 1 | O189: 0.033 | P189: 0.033 | Q189: 1.98 | R189: No | S189: Steel recycling | T189: 0 | U189: 1 | V189: 0 | W189: 0 | X189: 0 | Y189: 635992.823 | Z189: 18.89854762
E190: Structural steel profiles, generic, 60% recycled content, I, H, U, L, and T sections, S235, S275 and S355 | F190: 885.28 | G190: 0.02630612427 | H190: - | I190: 0.033 | J190: 29.21424 | K190: 514.2 | L190: 0.000515 | M190: 60 | N190: 1 | O190: 0.033 | P190: 0.033 | Q190: 1.98 | R190: No | S190: Steel recycling | T190: 0 | U190: 1 | V190: 0 | W190: 0 | X190: 0 | Y190: 885.313 | Z190: 0.02630710486
G191: =IF(AND(F191<>0,$D$31<>0),F191/$D$31,0) -> 0 | H191: - | J191: 0 | N191: 0 | O191: 0 | Q191: 0 | T191: 0 | U191: 0 | V191: 1 | W191: 0 | X191: 0 | Y191: 0 | Z191: 0
G192: =IF(AND(F192<>0,$D$31<>0),F192/$D$31,0) -> 0 | H192: - | J192: 0 | N192: 0 | O192: 0 | Q192: 0 | T192: 0 | U192: 0 | V192: 1 | W192: 0 | X192: 0 | Y192: 0 | Z192: 0
G193: =IF(AND(F193<>0,$D$31<>0),F193/$D$31,0) -> 0 | H193: - | J193: 0 | N193: 0 | O193: 0 | Q193: 0 | T193: 0 | U193: 0 | V193: 1 | W193: 0 | X193: 0 | Y193: 0 | Z193: 0
G194: =IF(AND(F194<>0,$D$31<>0),F194/$D$31,0) -> 0 | H194: - | J194: 0 | N194: 0 | O194: 0 | Q194: 0 | T194: 0 | U194: 0 | V194: 1 | W194: 0 | X194: 0 | Y194: 0 | Z194: 0
G195: 0 | H195: - | J195: 0 | N195: 0 | O195: 0 | Q195: 0 | T195: 0 | U195: 0 | V195: 1 | W195: 0 | X195: 0 | Y195: 0 | Z195: 0
G196: 0 | H196: - | J196: 0 | N196: 0 | O196: 0 | Q196: 0 | T196: 0 | U196: 0 | V196: 1 | W196: 0 | X196: 0 | Y196: 0 | Z196: 0
B197: 2.2 | C197: Superstructure: Upper Floors | E197: - | F197: =SUM(F198:F217) -> 14107088.73 | G197: =IF(AND(F197<>0,$D$31<>0),F197/$D$31,0) -> 419.1926048 | H197: =SUMPRODUCT((C176:D459="Superstructure: Upper Floors")*G176:G459) -> 419.3075289 | I197: - | J197: =SUM(J198:J217) -> 527792.4397 | K197: - | L197: - | M197: - | N197: - | O197: =SUM(O198:O217) -> 1.716 | P197: - | Q197: =SUM(Q198:Q217) -> 64.26 | R197: - | S197: - | T197: =IF(W197<>0,W197/($F$197+$O$197),0) -> 0 | U197: =IF(Y197<>0,Y197/($F$197+$O$197),0) -> 0.0559607099 | V197: 0.9440392901 | W197: =SUM(W198:W217) -> 0 | X197: 0 | Y197: =SUM(Y198:Y217) -> 789442.796 | Z197: 23.4583186
B198: 2.2 | C198: Superstructure: Upper Floors | E198: Cross laminated timber (CLT), 481 kg/m3, 12% (± 3%) moisture content (One Click LCA) | F198: 3867.54 | G198: =IF(AND(F198<>0,$D$31<>0),F198/$D$31,0) -> 0.1149240781 | H198: - | I198: 0.17 | J198: =I198*F198 -> 657.4818 | K198: 0 | L198: 0 | M198: 60 | N198: 1 | O198: 0.17 | P198: 0.17 | Q198: 10.2 | R198: No | S198: Wood incineration | T198: 0 | U198: 0 | V198: 1 | W198: 0 | X198: 0 | Y198: 0 | Z198: 0
E199: EPS foam insulation, 0.034 W/mK, 25 kg/m3, max. 8000 x 1300 x 1000 mm (EUMEPS) | F199: 6751.32 | G199: =IF(AND(F199<>0,$D$31<>0),F199/$D$31,0) -> 0.2006156955 | H199: - | I199: 0.04 | J199: 270.0528 | K199: 0 | L199: 0 | M199: 60 | N199: 1 | O199: 0.04 | P199: 0.04 | Q199: 2.4 | R199: No | S199: Plastic-based material incineration | T199: 0 | U199: 0 | V199: 1 | W199: 0 | X199: 0 | Y199: 0 | Z199: 0
E200: Flooring screed, C20/25 - XC1 - S3 - 20 CEM I, 50mm, 116.8kg/m2, 2336 kg/m3 (SNBPE) | F200: 586680.09 | G200: =IF(AND(F200<>0,$D$31<>0),F200/$D$31,0) -> 17.43321814 | H200: - | I200: 0.13 | J200: 76268.4117 | K200: 0 | L200: 0 | M200: 30 | N200: 2 | O200: 0.26 | P200: 0.13 | Q200: 3.9 | R200: No | S200: Cement/mortar use in a backfill | T200: 0 | U200: 0 | V200: 1 | W200: 0 | X200: 0 | Y200: 0 | Z200: 0
E201: HS2 baseline - Cement grout, Cementitious modified mineral mortar (-) | F201: 97660.26 | G201: 2.901977833 | H201: - | I201: 0.13 | J201: 12695.8338 | K201: 0 | L201: 0 | M201: 30 | N201: 2 | O201: 0.26 | P201: 0.13 | Q201: 3.9 | R201: No | S201: Cement/mortar use in a backfill | T201: 0 | U201: 0 | V201: 1 | W201: 0 | X201: 0 | Y201: 0 | Z201: 0
E202: Plywood, generic, 4-50 mm (0.16-1.97 in), 620 kg/m3 (38.7 lbs/ft3) | F202: 3740.7 | G202: 0.1111550233 | H202: - | I202: 0.17 | J202: 635.919 | K202: 0 | L202: 0 | M202: 30 | N202: 2 | O202: 0.34 | P202: 0.17 | Q202: 5.1 | R202: No | S202: Wood incineration | T202: 0 | U202: 0 | V202: 1 | W202: 0 | X202: 0 | Y202: 0 | Z202: 0
E203: Precast concrete paver, 60 mm, 135.78 kg/m2 (CENTRE D`ETUDES ET DE RECHERCHES DE L`INDUSTRIE DU BÉTON) | F203: 30801.69 | G203: 0.9152732297 | H203: - | I203: 0 | J203: 0 | K203: 0 | L203: 0 | M203: 60 | N203: 1 | O203: 0 | P203: 0 | Q203: 0 | R203: No | S203: Rebar separated (2 %), concrete to aggregate | T203: 0 | U203: 0 | V203: 1 | W203: 0 | X203: 0 | Y203: 0 | Z203: 0
E204: Precast hollow core flooring, 150 mm, 2000 kg/m3 (PFF, BPCF) | F204: 2156900 | G204: 64.09235432 | H204: - | I204: 0 | J204: 0 | K204: 0 | L204: 0 | M204: 60 | N204: 1 | O204: 0 | P204: 0 | Q204: 0 | R204: No | S204: Rebar separated (2 %), concrete to aggregate | T204: 0 | U204: 0 | V204: 1 | W204: 0 | X204: 0 | Y204: 0 | Z204: 0
E205: Ready-mix concrete, GEN3 (C20/25), C III A, (36-65%GGBS) (Hanson HCG) | F205: 29827.2 | G205: 0.8863162274 | H205: - | I205: 0.04 | J205: 1193.088 | K205: 0 | L205: 0 | M205: 60 | N205: 1 | O205: 0.04 | P205: 0.04 | Q205: 2.4 | R205: No | S205: Concrete crushed to aggregate (for sub-base layers), Portland Cement 200 kg / m3 | T205: 0 | U205: 0 | V205: 1 | W205: 0 | X205: 0 | Y205: 0 | Z205: 0
E206: Ready-mix concrete, normal strength, generic, C32/40 (4600/5800 PSI) with CEM III/A, 50% GGBS content in cement (300 kg/m3; 18.7 lbs/ft3 total cement) (One Click LCA 2022) | F206: 3041475.84 | G206: 90.37755445 | H206: - | I206: 0.04 | J206: 121659.0336 | K206: 204714.72 | L206: 0.004023333333 | M206: 60 | N206: 1 | O206: 0.04 | P206: 0.04 | Q206: 2.4 | R206: No | S206: Concrete crushed to aggregate (for sub-base layers), Portland Cement 300 kg / m3 | T206: 0 | U206: 0 | V206: 1 | W206: 0 | X206: 0 | Y206: 0 | Z206: 0
E207: Ready-mix concrete, normal strength, generic, C35/45 (5000/6500 PSI) with CEM III/A, 50% GGBS content (340 kg/m3; 21.2 lbs/ft3 total cement) | F207: 40934.4 | G207: 1.21636704 | H207: - | I207: 0.04 | J207: 1637.376 | K207: 2755.2 | L207: 0.00031 | M207: 60 | N207: 1 | O207: 0.04 | P207: 0.04 | Q207: 2.4 | R207: No | S207: Concrete crushed to aggregate (for sub-base layers), Portland Cement 300 kg / m3 | T207: 0 | U207: 0 | V207: 1 | W207: 0 | X207: 0 | Y207: 0 | Z207: 0
E208: Ready-mix concrete, normal-strength, generic, C30/37 (4400/5400 PSI), 0% recycled binders in cement (300 kg/m3 / 18.72 lbs/ft3) | F208: 771264 | G208: 22.91813508 | H208: - | I208: 0.04 | J208: 30850.56 | K208: 0 | L208: 0 | M208: 60 | N208: 1 | O208: 0.04 | P208: 0.04 | Q208: 2.4 | R208: No | S208: Concrete crushed to aggregate (for sub-base layers), Portland Cement 300 kg / m3 | T208: 0 | U208: 0 | V208: 1 | W208: 0 | X208: 0 | Y208: 0 | Z208: 0
E209: Ready-mix concrete, RC 32/40 (32/40 MPa), 50% Cement replacement with blast furnace slag (GGBS) | F209: 6045312 | G209: 179.6366446 | H209: - | I209: 0.04 | J209: 241812.48 | K209: 363300 | L209: 0.011 | M209: 60 | N209: 1 | O209: 0.04 | P209: 0.04 | Q209: 2.4 | R209: No | S209: Concrete crushed to aggregate (for sub-base layers), Portland Cement 300 kg / m3 | T209: 0 | U209: 0 | V209: 1 | W209: 0 | X209: 0 | Y209: 0 | Z209: 0
E210: Reinforced concrete beam for interior use, 2387.04 kg/m3, C25/30 XC1/XC2 CEM II/A L or LL (SNBPE) | F210: 489677.38 | G210: 14.55077943 | H210: - | I210: 0 | J210: 0 | K210: 0 | L210: 0 | M210: 60 | N210: 1 | O210: 0 | P210: 0 | Q210: 0 | R210: No | S210: Rebar separated (2 %), concrete to aggregate | T210: 0 | U210: 0 | V210: 1 | W210: 0 | X210: 0 | Y210: 0 | Z210: 0
... 272 more rows

Sheet Post-Construction Stage
A4: Post-Construction Stage - Circular Economy Statement
C6: Project details
C7: Project name
C8: Planning application reference number (if applicable)
C9: Applicant
C10: London Borough
C11: Brief description of the project
C12: Author/s
C13: Date of assessment
C14: Number of Use Types
C15: Use Class / Type | D15: Floor Area by use type (m2)
C16: Use Class / Type 1 | D16: Use Class / Type 1 GIA
C17: Use Class / Type 2 | D17: Use Class / Type 2 GIA
C18: Use Class / Type 3 | D18: Use Class / Type 3 GIA
C19: Use Class / Type 4 | D19: Use Class / Type 4 GIA
C20: Use Class / Type 5 | D20: Use Class / Type 5 GIA
C21: Use Class / Type 6 | D21: Use Class / Type 6 GIA
C22: Use Class / Type 7 | D22: Use Class / Type 7 GIA
C23: Use Class / Type 8 | D23: Use Class / Type 8 GIA
C24: Use Class / Type 9 | D24: Use Class / Type 9 GIA
C25: Use Class / Type 10 | D25: Use Class / Type 10 GIA
C26: Use Class / Type 11 | D26: Use Class / Type 11 GIA
C27: Use Class / Type 12 | D27: Use Class / Type 12 GIA
C28: Use Class / Type 13 | D28: Use Class / Type 13 GIA
C29: Use Class / Type 14 | D29: Use Class / Type 14 GIA
C30: Use Class / Type 15 | D30: Use Class / Type 15 GIA
C31: Overall GIA (m2) | D31: =SUM(D16:D30) -> 0
B34: Bill of Materials
B35: Please click the + symbol to the left hand side of the Bill of Materials table to view or hide the input rows for each Building Element Category. The rows for substructure and frame have been unhidden to highlight this.
C36: BUILDING ELEMENT CATEGORY - LEVEL 1 (based on the RICS New Rules of Measurement (NRM) classification system level 2 sub-elements https://www.rics.org/globalassets/rics-website/media/products/data-products/bcis-construction/bcis-elemental-standard-form-cost-analysis-4th-nrm-edition-2012.pdf) | E36: PRODUCT AND CONSTRUCTION STAGE (MODULE A) | M36: USE STAGE (MODULE B) | R36: END OF LIFE STAGE (MODULE C) | W36: BENEFITS BEYOND THE SYSTEM BOUNDARY (MODULE D)
C37: Building Element Category | E37: Material Type | F37: Material quantity (Module A) (kg) | G37: Material intensity (Module A) (kg/m2 GIA) | H37: Performance Indicator (Planning Stage Estimate) | I37: Construction Waste Factor (Module A) | J37: Construction Waste (Module A) (kg) | K37: Recycled Content by mass (kg) | L37: Recycled Content by value (%) | M37: Expected Lifespan (years) | N37: Number of Replacements (over assumed 60-year period) | O37: Repair and Replacement quantities of materials (Module B) (kg) | P37: Construction Waste Factor (Module B) | Q37: Construction Waste (Module B) (kg) | R37: Design for Disassembly | S37: Assumed End of Life Scenario (Description) | T37: % Reusing | U37: % Recycling | V37: % Landfill | W37: Estimated reusable materials (kg) | X37: Estimated reusable materials intensity (kg/m2 GIA) | Y37: Estimated recyclable materials (kg) | Z37: Estimated recyclable materials intensity (kg/m2 GIA)
B38: 0.1 | C38: Demolition: Toxic/Hazardous/Contaminated Material Treatment | E38: - | F38: =SUM(F39:F53) -> 0 | G38: =IF(AND(F38<>0,$D$31<>0),F38/$D$31,0) -> 0 | H38: - | I38: - | J38: =SUM(J39:J53) -> 0 | K38: - | L38: - | M38: - | N38: - | O38: =SUM(O39:O53) -> 0 | P38: - | Q38: =SUM(Q39:Q53) -> 0 | R38: - | S38: - | T38: =IF(W38<>0,W38/($F$91+$O$91),0) -> 0 | U38: =IF(Y38<>0,Y38/($F$91+$O$91),0) -> 0 | V38: =1-T38-U38 -> 1 | W38: =SUM(W39:W53) -> 0 | X38: =IF(AND(W38<>0,$D$31<>0),W38/$D$31,0) -> 0 | Y38: =SUM(Y39:Y53) -> 0 | Z38: =IF(AND(Y38<>0,$D$31<>0),Y38/$D$31,0) -> 0
B39: 0.1 | C39: Demolition: Toxic/Hazardous/Contaminated Material Treatment | G39: =IF(AND(F39<>0,$D$31<>0),F39/$D$31,0) -> 0 | H39: - | J39: =F39*I39 -> 0 | N39: =IF(M39<>0,INT(60/M39),0) -> 0 | O39: =N39*I39 -> 0 | Q39: =P39*M39 -> 0 | T39: 0 | U39: 0 | V39: =1-T39-U39 -> 1 | W39: =T39*(F39+O39) -> 0 | X39: =IF(AND(W39<>0,$D$31<>0),W39/$D$31,0) -> 0 | Y39: =U39*(F39+O39) -> 0 | Z39: =IF(AND(Y39<>0,$D$31<>0),Y39/$D$31,0) -> 0
G40: =IF(AND(F40<>0,$D$31<>0),F40/$D$31,0) -> 0 | H40: - | J40: =F40*I40 -> 0 | N40: =IF(M40<>0,INT(60/M40),0) -> 0 | O40: =N40*I40 -> 0 | Q40: =P40*M40 -> 0 | T40: 0 | U40: 0 | V40: =1-T40-U40 -> 1 | W40: =T40*(F40+O40) -> 0 | X40: =IF(AND(W40<>0,$D$31<>0),W40/$D$31,0) -> 0 | Y40: =U40*(F40+O40) -> 0 | Z40: 0
G41: 0 | H41: - | J41: 0 | N41: 0 | O41: 0 | Q41: 0 | T41: 0 | U41: 0 | V41: 1 | W41: 0 | X41: 0 | Y41: 0 | Z41: 0
G42: 0 | H42: - | J42: 0 | N42: 0 | O42: 0 | Q42: 0 | T42: 0 | U42: 0 | V42: 1 | W42: 0 | X42: 0 | Y42: 0 | Z42: 0
G43: 0 | H43: - | J43: 0 | N43: 0 | O43: 0 | Q43: 0 | T43: 0 | U43: 0 | V43: 1 | W43: 0 | X43: 0 | Y43: 0 | Z43: 0
G44: 0 | H44: - | J44: 0 | N44: 0 | O44: 0 | Q44: 0 | T44: 0 | U44: 0 | V44: 1 | W44: 0 | X44: 0 | Y44: 0 | Z44: 0
G45: 0 | H45: - | J45: 0 | N45: 0 | O45: 0 | Q45: 0 | T45: 0 | U45: 0 | V45: 1 | W45: 0 | X45: 0 | Y45: 0 | Z45: 0
G46: 0 | H46: - | J46: 0 | N46: 0 | O46: 0 | Q46: 0 | T46: 0 | U46: 0 | V46: 1 | W46: 0 | X46: 0 | Y46: 0 | Z46: 0
G47: 0 | H47: - | J47: 0 | N47: 0 | O47: 0 | Q47: 0 | T47: 0 | U47: 0 | V47: 1 | W47: 0 | X47: 0 | Y47: 0 | Z47: 0
G48: 0 | H48: - | J48: 0 | N48: 0 | O48: 0 | Q48: 0 | T48: 0 | U48: 0 | V48: 1 | W48: 0 | X48: 0 | Y48: 0 | Z48: 0
G49: 0 | H49: - | J49: 0 | N49: 0 | O49: 0 | Q49: 0 | T49: 0 | U49: 0 | V49: 1 | W49: 0 | X49: 0 | Y49: 0 | Z49: 0
G50: 0 | H50: - | J50: 0 | N50: 0 | O50: 0 | Q50: 0 | T50: 0 | U50: 0 | V50: 1 | W50: 0 | X50: 0 | Y50: 0 | Z50: 0
G51: 0 | H51: - | J51: 0 | N51: 0 | O51: 0 | Q51: 0 | T51: 0 | U51: 0 | V51: 1 | W51: 0 | X51: 0 | Y51: 0 | Z51: 0
G52: 0 | H52: - | J52: 0 | N52: 0 | O52: 0 | Q52: 0 | T52: 0 | U52: 0 | V52: 1 | W52: 0 | X52: 0 | Y52: 0 | Z52: 0
G53: 0 | H53: - | J53: 0 | N53: 0 | O53: 0 | Q53: 0 | T53: 0 | U53: 0 | V53: 1 | W53: 0 | X53: 0 | Y53: 0 | Z53: 0
B54: 0.2 | C54: Major Demolition Works | E54: - | F54: =SUM(F55:F69) -> 0 | G54: =IF(AND(F54<>0,$D$31<>0),F54/$D$31,0) -> 0 | H54: - | I54: - | J54: =SUM(J55:J69) -> 0 | K54: - | L54: - | M54: - | N54: - | O54: =SUM(O55:O69) -> 0 | P54: - | Q54: =SUM(Q55:Q69) -> 0 | R54: - | S54: - | T54: =IF(W54<>0,W54/($F$107+$O$107),0) -> 0 | U54: =IF(Y54<>0,Y54/($F$107+$O$107),0) -> 0 | V54: =1-T54-U54 -> 1 | W54: =SUM(W55:W69) -> 0 | X54: 0 | Y54: =SUM(Y55:Y69) -> 0 | Z54: 0
B55: 0.2 | C55: Major Demolition Works | G55: =IF(AND(F55<>0,$D$31<>0),F55/$D$31,0) -> 0 | H55: - | J55: =I55*F55 -> 0 | N55: 0 | O55: 0 | Q55: 0 | T55: 0 | U55: 0 | V55: 1 | W55: 0 | X55: 0 | Y55: 0 | Z55: 0
G56: =IF(AND(F56<>0,$D$31<>0),F56/$D$31,0) -> 0 | H56: - | J56: 0 | N56: 0 | O56: 0 | Q56: 0 | T56: 0 | U56: 0 | V56: 1 | W56: 0 | X56: 0 | Y56: 0 | Z56: 0
G57: =IF(AND(F57<>0,$D$31<>0),F57/$D$31,0) -> 0 | H57: - | J57: 0 | N57: 0 | O57: 0 | Q57: 0 | T57: 0 | U57: 0 | V57: 1 | W57: 0 | X57: 0 | Y57: 0 | Z57: 0
G58: 0 | H58: - | J58: 0 | N58: 0 | O58: 0 | Q58: 0 | T58: 0 | U58: 0 | V58: 1 | W58: 0 | X58: 0 | Y58: 0 | Z58: 0
G59: 0 | H59: - | J59: 0 | N59: 0 | O59: 0 | Q59: 0 | T59: 0 | U59: 0 | V59: 1 | W59: 0 | X59: 0 | Y59: 0 | Z59: 0
G60: 0 | H60: - | J60: 0 | N60: 0 | O60: 0 | Q60: 0 | T60: 0 | U60: 0 | V60: 1 | W60: 0 | X60: 0 | Y60: 0 | Z60: 0
G61: 0 | H61: - | J61: 0 | N61: 0 | O61: 0 | Q61: 0 | T61: 0 | U61: 0 | V61: 1 | W61: 0 | X61: 0 | Y61: 0 | Z61: 0
G62: 0 | H62: - | J62: 0 | N62: 0 | O62: 0 | Q62: 0 | T62: 0 | U62: 0 | V62: 1 | W62: 0 | X62: 0 | Y62: 0 | Z62: 0
G63: 0 | H63: - | J63: 0 | N63: 0 | O63: 0 | Q63: 0 | T63: 0 | U63: 0 | V63: 1 | W63: 0 | X63: 0 | Y63: 0 | Z63: 0
G64: 0 | H64: - | J64: 0 | N64: 0 | O64: 0 | Q64: 0 | T64: 0 | U64: 0 | V64: 1 | W64: 0 | X64: 0 | Y64: 0 | Z64: 0
G65: 0 | H65: - | J65: 0 | N65: 0 | O65: 0 | Q65: 0 | T65: 0 | U65: 0 | V65: 1 | W65: 0 | X65: 0 | Y65: 0 | Z65: 0
G66: 0 | H66: - | J66: 0 | N66: 0 | O66: 0 | Q66: 0 | T66: 0 | U66: 0 | V66: 1 | W66: 0 | X66: 0 | Y66: 0 | Z66: 0
G67: 0 | H67: - | J67: 0 | N67: 0 | O67: 0 | Q67: 0 | T67: 0 | U67: 0 | V67: 1 | W67: 0 | X67: 0 | Y67: 0 | Z67: 0
G68: 0 | H68: - | J68: 0 | N68: 0 | O68: 0 | Q68: 0 | T68: 0 | U68: 0 | V68: 1 | W68: 0 | X68: 0 | Y68: 0 | Z68: 0
G69: 0 | H69: - | J69: 0 | N69: 0 | O69: 0 | Q69: 0 | T69: 0 | U69: 0 | V69: 1 | W69: 0 | X69: 0 | Y69: 0 | Z69: 0
B70: 0.3 | C70: Temporary Support to Adjacent Structures | E70: - | F70: =SUM(F71:F85) -> 0 | G70: =IF(AND(F70<>0,$D$31<>0),F70/$D$31,0) -> 0 | H70: - | I70: - | J70: =SUM(J71:J85) -> 0 | K70: - | L70: - | M70: - | N70: - | O70: =SUM(O71:O85) -> 0 | P70: - | Q70: =SUM(Q71:Q85) -> 0 | R70: - | S70: - | T70: =IF(W70<>0,W70/($F$123+$O$123),0) -> 0 | U70: =IF(Y70<>0,Y70/($F$123+$O$123),0) -> 0 | V70: 1 | W70: =SUM(W71:W85) -> 0 | X70: 0 | Y70: =SUM(Y71:Y85) -> 0 | Z70: 0
B71: 0.3 | C71: Temporary Support to Adjacent Structures | G71: =IF(AND(F71<>0,$D$31<>0),F71/$D$31,0) -> 0 | H71: - | J71: =I71*F71 -> 0 | N71: 0 | O71: 0 | Q71: 0 | T71: 0 | U71: 0 | V71: 1 | W71: 0 | X71: 0 | Y71: 0 | Z71: 0
G72: =IF(AND(F72<>0,$D$31<>0),F72/$D$31,0) -> 0 | H72: - | J72: 0 | N72: 0 | O72: 0 | Q72: 0 | T72: 0 | U72: 0 | V72: 1 | W72: 0 | X72: 0 | Y72: 0 | Z72: 0
G73: =IF(AND(F73<>0,$D$31<>0),F73/$D$31,0) -> 0 | H73: - | J73: 0 | N73: 0 | O73: 0 | Q73: 0 | T73: 0 | U73: 0 | V73: 1 | W73: 0 | X73: 0 | Y73: 0 | Z73: 0
G74: 0 | H74: - | J74: 0 | N74: 0 | O74: 0 | Q74: 0 | T74: 0 | U74: 0 | V74: 1 | W74: 0 | X74: 0 | Y74: 0 | Z74: 0
G75: 0 | H75: - | J75: 0 | N75: 0 | O75: 0 | Q75: 0 | T75: 0 | U75: 0 | V75: 1 | W75: 0 | X75: 0 | Y75: 0 | Z75: 0
G76: 0 | H76: - | J76: 0 | N76: 0 | O76: 0 | Q76: 0 | T76: 0 | U76: 0 | V76: 1 | W76: 0 | X76: 0 | Y76: 0 | Z76: 0
G77: 0 | H77: - | J77: 0 | N77: 0 | O77: 0 | Q77: 0 | T77: 0 | U77: 0 | V77: 1 | W77: 0 | X77: 0 | Y77: 0 | Z77: 0
G78: 0 | H78: - | J78: 0 | N78: 0 | O78: 0 | Q78: 0 | T78: 0 | U78: 0 | V78: 1 | W78: 0 | X78: 0 | Y78: 0 | Z78: 0
G79: 0 | H79: - | J79: 0 | N79: 0 | O79: 0 | Q79: 0 | T79: 0 | U79: 0 | V79: 1 | W79: 0 | X79: 0 | Y79: 0 | Z79: 0
G80: 0 | H80: - | J80: 0 | N80: 0 | O80: 0 | Q80: 0 | T80: 0 | U80: 0 | V80: 1 | W80: 0 | X80: 0 | Y80: 0 | Z80: 0
G81: 0 | H81: - | J81: 0 | N81: 0 | O81: 0 | Q81: 0 | T81: 0 | U81: 0 | V81: 1 | W81: 0 | X81: 0 | Y81: 0 | Z81: 0
G82: 0 | H82: - | J82: 0 | N82: 0 | O82: 0 | Q82: 0 | T82: 0 | U82: 0 | V82: 1 | W82: 0 | X82: 0 | Y82: 0 | Z82: 0
G83: 0 | H83: - | J83: 0 | N83: 0 | O83: 0 | Q83: 0 | T83: 0 | U83: 0 | V83: 1 | W83: 0 | X83: 0 | Y83: 0 | Z83: 0
G84: 0 | H84: - | J84: 0 | N84: 0 | O84: 0 | Q84: 0 | T84: 0 | U84: 0 | V84: 1 | W84: 0 | X84: 0 | Y84: 0 | Z84: 0
G85: 0 | H85: - | J85: 0 | N85: 0 | O85: 0 | Q85: 0 | T85: 0 | U85: 0 | V85: 1 | W85: 0 | X85: 0 | Y85: 0 | Z85: 0
B86: 0.4 | C86: Specialist Ground Works | E86: - | F86: =SUM(F87:F101) -> 0 | G86: =IF(AND(F86<>0,$D$31<>0),F86/$D$31,0) -> 0 | H86: - | I86: - | J86: =SUM(J87:J101) -> 0 | K86: - | L86: - | M86: - | N86: - | O86: =SUM(O87:O101) -> 0 | P86: - | Q86: =SUM(Q87:Q101) -> 0 | R86: - | S86: - | T86: =IF(W86<>0,W86/($F$139+$O$139),0) -> 0 | U86: =IF(Y86<>0,Y86/($F$139+$O$139),0) -> 0 | V86: 1 | W86: =SUM(W87:W101) -> 0 | X86: 0 | Y86: =SUM(Y87:Y101) -> 0 | Z86: 0
B87: 0.4 | C87: Specialist Ground Works | G87: =IF(AND(F87<>0,$D$31<>0),F87/$D$31,0) -> 0 | H87: - | J87: =I87*F87 -> 0 | N87: 0 | O87: 0 | Q87: 0 | T87: 0 | U87: 0 | V87: 1 | W87: 0 | X87: 0 | Y87: 0 | Z87: 0
G88: =IF(AND(F88<>0,$D$31<>0),F88/$D$31,0) -> 0 | H88: - | J88: 0 | N88: 0 | O88: 0 | Q88: 0 | T88: 0 | U88: 0 | V88: 1 | W88: 0 | X88: 0 | Y88: 0 | Z88: 0
G89: =IF(AND(F89<>0,$D$31<>0),F89/$D$31,0) -> 0 | H89: - | J89: 0 | N89: 0 | O89: 0 | Q89: 0 | T89: 0 | U89: 0 | V89: 1 | W89: 0 | X89: 0 | Y89: 0 | Z89: 0
G90: 0 | H90: - | J90: 0 | N90: 0 | O90: 0 | Q90: 0 | T90: 0 | U90: 0 | V90: 1 | W90: 0 | X90: 0 | Y90: 0 | Z90: 0
G91: 0 | H91: - | J91: 0 | N91: 0 | O91: 0 | Q91: 0 | T91: 0 | U91: 0 | V91: 1 | W91: 0 | X91: 0 | Y91: 0 | Z91: 0
G92: 0 | H92: - | J92: 0 | N92: 0 | O92: 0 | Q92: 0 | T92: 0 | U92: 0 | V92: 1 | W92: 0 | X92: 0 | Y92: 0 | Z92: 0
G93: 0 | H93: - | J93: 0 | N93: 0 | O93: 0 | Q93: 0 | T93: 0 | U93: 0 | V93: 1 | W93: 0 | X93: 0 | Y93: 0 | Z93: 0
G94: 0 | H94: - | J94: 0 | N94: 0 | O94: 0 | Q94: 0 | T94: 0 | U94: 0 | V94: 1 | W94: 0 | X94: 0 | Y94: 0 | Z94: 0
G95: 0 | H95: - | J95: 0 | N95: 0 | O95: 0 | Q95: 0 | T95: 0 | U95: 0 | V95: 1 | W95: 0 | X95: 0 | Y95: 0 | Z95: 0
G96: 0 | H96: - | J96: 0 | N96: 0 | O96: 0 | Q96: 0 | T96: 0 | U96: 0 | V96: 1 | W96: 0 | X96: 0 | Y96: 0 | Z96: 0
G97: 0 | H97: - | J97: 0 | N97: 0 | O97: 0 | Q97: 0 | T97: 0 | U97: 0 | V97: 1 | W97: 0 | X97: 0 | Y97: 0 | Z97: 0
G98: 0 | H98: - | J98: 0 | N98: 0 | O98: 0 | Q98: 0 | T98: 0 | U98: 0 | V98: 1 | W98: 0 | X98: 0 | Y98: 0 | Z98: 0
G99: 0 | H99: - | J99: 0 | N99: 0 | O99: 0 | Q99: 0 | T99: 0 | U99: 0 | V99: 1 | W99: 0 | X99: 0 | Y99: 0 | Z99: 0
G100: 0 | H100: - | J100: 0 | N100: 0 | O100: 0 | Q100: 0 | T100: 0 | U100: 0 | V100: 1 | W100: 0 | X100: 0 | Y100: 0 | Z100: 0
G101: 0 | H101: - | J101: 0 | N101: 0 | O101: 0 | Q101: 0 | T101: 0 | U101: 0 | V101: 1 | W101: 0 | X101: 0 | Y101: 0 | Z101: 0
B102: 1 | C102: Substructure | E102: - | F102: =SUM(F103:F122) -> 0 | G102: =IF(AND(F102<>0,$D$31<>0),F102/$D$31,0) -> 0 | H102: =IF(AND('Detailed Application Stage'!G155<>0,'Post-Construction Stage'!G102<>0),IF('Detailed Application Stage'!G155='Post-Construction Stage'!G102,"Equal to planning stage estimate",IF('Detailed Application Stage'!G155<'Post-Construction Stage'!G102,"Greater than planning stage estimate","Less than planning stage estimate")),"") ->  | I102: - | J102: =SUM(J103:J122) -> 0 | K102: - | L102: - | M102: - | N102: - | O102: =SUM(O103:O122) -> 0 | P102: - | Q102: =SUM(Q103:Q122) -> 0 | R102: - | S102: - | T102: =IF(W102<>0,W102/($F$155+$O$155),0) -> 0 | U102: =IF(Y102<>0,Y102/($F$155+$O$155),0) -> 0 | V102: 1 | W102: =SUM(W103:W122) -> 0 | X102: 0 | Y102: =SUM(Y103:Y122) -> 0 | Z102: 0
B103: 1 | C103: Substructure | G103: =IF(AND(F103<>0,$D$31<>0),F103/$D$31,0) -> 0 | H103: - | J103: =I103*F103 -> 0 | N103: 0 | O103: 0 | Q103: 0 | T103: 0 | U103: 0 | V103: 1 | W103: 0 | X103: 0 | Y103: 0 | Z103: 0
G104: =IF(AND(F104<>0,$D$31<>0),F104/$D$31,0) -> 0 | H104: - | J104: 0 | N104: =IF(M104<>0,INT(60/M104),0) -> 0 | O104: =N104*I104 -> 0 | Q104: =P104*M104 -> 0 | T104: 0 | U104: 0 | V104: =1-T104-U104 -> 1 | W104: =T104*(F104+O104) -> 0 | X104: =IF(AND(W104<>0,$D$31<>0),W104/$D$31,0) -> 0 | Y104: =U104*(F104+O104) -> 0 | Z104: 0
G105: =IF(AND(F105<>0,$D$31<>0),F105/$D$31,0) -> 0 | H105: - | J105: 0 | N105: 0 | O105: 0 | Q105: 0 | T105: 0 | U105: 0 | V105: 1 | W105: 0 | X105: 0 | Y105: 0 | Z105: 0
G106: 0 | H106: - | J106: 0 | N106: 0 | O106: 0 | Q106: 0 | T106: 0 | U106: 0 | V106: 1 | W106: 0 | X106: 0 | Y106: 0 | Z106: 0
G107: 0 | H107: - | J107: 0 | N107: 0 | O107: 0 | Q107: 0 | T107: 0 | U107: 0 | V107: 1 | W107: 0 | X107: 0 | Y107: 0 | Z107: 0
G108: 0 | H108: - | J108: 0 | N108: 0 | O108: 0 | Q108: 0 | T108: 0 | U108: 0 | V108: 1 | W108: 0 | X108: 0 | Y108: 0 | Z108: 0
G109: 0 | H109: - | J109: 0 | N109: 0 | O109: 0 | Q109: 0 | T109: 0 | U109: 0 | V109: 1 | W109: 0 | X109: 0 | Y109: 0 | Z109: 0
G110: 0 | H110: - | J110: 0 | N110: 0 | O110: 0 | Q110: 0 | T110: 0 | U110: 0 | V110: 1 | W110: 0 | X110: 0 | Y110: 0 | Z110: 0
G111: 0 | H111: - | J111: 0 | N111: 0 | O111: 0 | Q111: 0 | T111: 0 | U111: 0 | V111: 1 | W111: 0 | X111: 0 | Y111: 0 | Z111: 0
G112: 0 | H112: - | J112: 0 | N112: 0 | O112: 0 | Q112: 0 | T112: 0 | U112: 0 | V112: 1 | W112: 0 | X112: 0 | Y112: 0 | Z112: 0
G113: 0 | H113: - | J113: 0 | N113: 0 | O113: 0 | Q113: 0 | T113: 0 | U113: 0 | V113: 1 | W113: 0 | X113: 0 | Y113: 0 | Z113: 0
G114: 0 | H114: - | J114: 0 | N114: 0 | O114: 0 | Q114: 0 | T114: 0 | U114: 0 | V114: 1 | W114: 0 | X114: 0 | Y114: 0 | Z114: 0
G115: 0 | H115: - | J115: 0 | N115: 0 | O115: 0 | Q115: 0 | T115: 0 | U115: 0 | V115: 1 | W115: 0 | X115: 0 | Y115: 0 | Z115: 0
G116: 0 | H116: - | J116: 0 | N116: 0 | O116: 0 | Q116: 0 | T116: 0 | U116: 0 | V116: 1 | W116: 0 | X116: 0 | Y116: 0 | Z116: 0
G117: =IF(AND(F117<>0,$D$31<>0),F117/$D$31,0) -> 0 | H117: - | J117: 0 | N117: 0 | O117: 0 | Q117: 0 | T117: 0 | U117: 0 | V117: 1 | W117: 0 | X117: 0 | Y117: 0 | Z117: 0
G118: =IF(AND(F118<>0,$D$31<>0),F118/$D$31,0) -> 0 | H118: - | J118: 0 | N118: 0 | O118: 0 | Q118: 0 | T118: 0 | U118: 0 | V118: 1 | W118: 0 | X118: 0 | Y118: 0 | Z118: 0
G119: =IF(AND(F119<>0,$D$31<>0),F119/$D$31,0) -> 0 | H119: - | J119: 0 | N119: 0 | O119: 0 | Q119: 0 | T119: 0 | U119: 0 | V119: 1 | W119: 0 | X119: 0 | Y119: 0 | Z119: 0
G120: 0 | H120: - | J120: 0 | N120: 0 | O120: 0 | Q120: 0 | T120: 0 | U120: 0 | V120: 1 | W120: 0 | X120: 0 | Y120: 0 | Z120: 0
G121: 0 | H121: - | J121: 0 | N121: 0 | O121: 0 | Q121: 0 | T121: 0 | U121: 0 | V121: 1 | W121: 0 | X121: 0 | Y121: 0 | Z121: 0
G122: =IF(AND(F122<>0,$D$31<>0),F122/$D$31,0) -> 0 | H122: - | J122: 0 | N122: 0 | O122: 0 | Q122: 0 | T122: 0 | U122: 0 | V122: 1 | W122: 0 | X122: 0 | Y122: 0 | Z122: 0
B123: 2.1 | C123: Superstructure: Frame | E123: - | F123: =SUM(F124:F143) -> 0 | G123: =IF(AND(F123<>0,$D$31<>0),F123/$D$31,0) -> 0 | H123: =IF(AND('Detailed Application Stage'!G176<>0,'Post-Construction Stage'!G123<>0),IF('Detailed Application Stage'!G176='Post-Construction Stage'!G123,"Equal to planning stage estimate",IF('Detailed Application Stage'!G176<'Post-Construction Stage'!G123,"Greater than planning stage estimate","Less than planning stage estimate")),"") ->  | I123: - | J123: =SUM(J124:J143) -> 0 | K123: - | L123: - | M123: - | N123: - | O123: =SUM(O124:O143) -> 0 | P123: - | Q123: =SUM(Q124:Q143) -> 0 | R123: - | S123: - | T123: =IF(W123<>0,W123/($F$176+$O$176),0) -> 0 | U123: =IF(Y123<>0,Y123/($F$176+$O$176),0) -> 0 | V123: 1 | W123: =SUM(W124:W143) -> 0 | X123: 0 | Y123: =SUM(Y124:Y143) -> 0 | Z123: 0
B124: 2.1 | C124: Superstructure: Frame | G124: =IF(AND(F124<>0,$D$31<>0),F124/$D$31,0) -> 0 | H124: - | J124: =I124*F124 -> 0 | N124: 0 | O124: 0 | Q124: 0 | T124: 0 | U124: 0 | V124: 1 | W124: 0 | X124: 0 | Y124: 0 | Z124: 0
G125: =IF(AND(F125<>0,$D$31<>0),F125/$D$31,0) -> 0 | H125: - | J125: 0 | N125: 0 | O125: 0 | Q125: 0 | T125: 0 | U125: 0 | V125: 1 | W125: 0 | X125: 0 | Y125: 0 | Z125: 0
G126: =IF(AND(F126<>0,$D$31<>0),F126/$D$31,0) -> 0 | H126: - | J126: 0 | N126: 0 | O126: 0 | Q126: 0 | T126: 0 | U126: 0 | V126: 1 | W126: 0 | X126: 0 | Y126: 0 | Z126: 0
G127: 0 | H127: - | J127: 0 | N127: 0 | O127: 0 | Q127: 0 | T127: 0 | U127: 0 | V127: 1 | W127: 0 | X127: 0 | Y127: 0 | Z127: 0
G128: 0 | H128: - | J128: 0 | N128: 0 | O128: 0 | Q128: 0 | T128: 0 | U128: 0 | V128: 1 | W128: 0 | X128: 0 | Y128: 0 | Z128: 0
G129: 0 | H129: - | J129: 0 | N129: 0 | O129: 0 | Q129: 0 | T129: 0 | U129: 0 | V129: 1 | W129: 0 | X129: 0 | Y129: 0 | Z129: 0
G130: 0 | H130: - | J130: 0 | N130: 0 | O130: 0 | Q130: 0 | T130: 0 | U130: 0 | V130: 1 | W130: 0 | X130: 0 | Y130: 0 | Z130: 0
G131: 0 | H131: - | J131: 0 | N131: 0 | O131: 0 | Q131: 0 | T131: 0 | U131: 0 | V131: 1 | W131: 0 | X131: 0 | Y131: 0 | Z131: 0
G132: 0 | H132: - | J132: 0 | N132: 0 | O132: 0 | Q132: 0 | T132: 0 | U132: 0 | V132: 1 | W132: 0 | X132: 0 | Y132: 0 | Z132: 0
G133: 0 | H133: - | J133: 0 | N133: 0 | O133: 0 | Q133: 0 | T133: 0 | U133: 0 | V133: 1 | W133: 0 | X133: 0 | Y133: 0 | Z133: 0
G134: 0 | H134: - | J134: 0 | N134: 0 | O134: 0 | Q134: 0 | T134: 0 | U134: 0 | V134: 1 | W134: 0 | X134: 0 | Y134: 0 | Z134: 0
G135: 0 | H135: - | J135: 0 | N135: 0 | O135: 0 | Q135: 0 | T135: 0 | U135: 0 | V135: 1 | W135: 0 | X135: 0 | Y135: 0 | Z135: 0
G136: 0 | H136: - | J136: 0 | N136: 0 | O136: 0 | Q136: 0 | T136: 0 | U136: 0 | V136: 1 | W136: 0 | X136: 0 | Y136: 0 | Z136: 0
G137: 0 | H137: - | J137: 0 | N137: 0 | O137: 0 | Q137: 0 | T137: 0 | U137: 0 | V137: 1 | W137: 0 | X137: 0 | Y137: 0 | Z137: 0
G138: =IF(AND(F138<>0,$D$31<>0),F138/$D$31,0) -> 0 | H138: - | J138: 0 | N138: 0 | O138: 0 | Q138: 0 | T138: 0 | U138: 0 | V138: 1 | W138: 0 | X138: 0 | Y138: 0 | Z138: 0
G139: =IF(AND(F139<>0,$D$31<>0),F139/$D$31,0) -> 0 | H139: - | J139: 0 | N139: 0 | O139: 0 | Q139: 0 | T139: 0 | U139: 0 | V139: 1 | W139: 0 | X139: 0 | Y139: 0 | Z139: 0
G140: =IF(AND(F140<>0,$D$31<>0),F140/$D$31,0) -> 0 | H140: - | J140: 0 | N140: 0 | O140: 0 | Q140: 0 | T140: 0 | U140: 0 | V140: 1 | W140: 0 | X140: 0 | Y140: 0 | Z140: 0
G141: =IF(AND(F141<>0,$D$31<>0),F141/$D$31,0) -> 0 | H141: - | J141: 0 | N141: 0 | O141: 0 | Q141: 0 | T141: 0 | U141: 0 | V141: 1 | W141: 0 | X141: 0 | Y141: 0 | Z141: 0
G142: 0 | H142: - | J142: 0 | N142: 0 | O142: 0 | Q142: 0 | T142: 0 | U142: 0 | V142: 1 | W142: 0 | X142: 0 | Y142: 0 | Z142: 0
G143: 0 | H143: - | J143: 0 | N143: 0 | O143: 0 | Q143: 0 | T143: 0 | U143: 0 | V143: 1 | W143: 0 | X143: 0 | Y143: 0 | Z143: 0
B144: 2.2 | C144: Superstructure: Upper Floors | E144: - | F144: =SUM(F145:F164) -> 0 | G144: =IF(AND(F144<>0,$D$31<>0),F144/$D$31,0) -> 0 | H144: =IF(AND('Detailed Application Stage'!G197<>0,'Post-Construction Stage'!G144<>0),IF('Detailed Application Stage'!G197='Post-Construction Stage'!G144,"Equal to planning stage estimate",IF('Detailed Application Stage'!G197<'Post-Construction Stage'!G144,"Greater than planning stage estimate","Less than planning stage estimate")),"") ->  | I144: - | J144: =SUM(J145:J164) -> 0 | K144: - | L144: - | M144: - | N144: - | O144: =SUM(O145:O164) -> 0 | P144: - | Q144: =SUM(Q145:Q164) -> 0 | R144: - | S144: - | T144: =IF(W144<>0,W144/($F$197+$O$197),0) -> 0 | U144: =IF(Y144<>0,Y144/($F$197+$O$197),0) -> 0 | V144: 1 | W144: =SUM(W145:W164) -> 0 | X144: 0 | Y144: =SUM(Y145:Y164) -> 0 | Z144: 0
B145: 2.2 | C145: Superstructure: Upper Floors | G145: =IF(AND(F145<>0,$D$31<>0),F145/$D$31,0) -> 0 | H145: - | J145: =I145*F145 -> 0 | N145: 0 | O145: 0 | Q145: 0 | T145: 0 | U145: 0 | V145: 1 | W145: 0 | X145: 0 | Y145: 0 | Z145: 0
G146: =IF(AND(F146<>0,$D$31<>0),F146/$D$31,0) -> 0 | H146: - | J146: 0 | N146: 0 | O146: 0 | Q146: 0 | T146: 0 | U146: 0 | V146: 1 | W146: 0 | X146: 0 | Y146: 0 | Z146: 0
G147: =IF(AND(F147<>0,$D$31<>0),F147/$D$31,0) -> 0 | H147: - | J147: 0 | N147: 0 | O147: 0 | Q147: 0 | T147: 0 | U147: 0 | V147: 1 | W147: 0 | X147: 0 | Y147: 0 | Z147: 0
G148: 0 | H148: - | J148: 0 | N148: 0 | O148: 0 | Q148: 0 | T148: 0 | U148: 0 | V148: 1 | W148: 0 | X148: 0 | Y148: 0 | Z148: 0
G149: 0 | H149: - | J149: 0 | N149: 0 | O149: 0 | Q149: 0 | T149: 0 | U149: 0 | V149: 1 | W149: 0 | X149: 0 | Y149: 0 | Z149: 0
G150: 0 | H150: - | J150: 0 | N150: 0 | O150: 0 | Q150: 0 | T150: 0 | U150: 0 | V150: 1 | W150: 0 | X150: 0 | Y150: 0 | Z150: 0
G151: 0 | H151: - | J151: 0 | N151: 0 | O151: 0 | Q151: 0 | T151: 0 | U151: 0 | V151: 1 | W151: 0 | X151: 0 | Y151: 0 | Z151: 0
G152: 0 | H152: - | J152: 0 | N152: 0 | O152: 0 | Q152: 0 | T152: 0 | U152: 0 | V152: 1 | W152: 0 | X152: 0 | Y152: 0 | Z152: 0
G153: 0 | H153: - | J153: 0 | N153: 0 | O153: 0 | Q153: 0 | T153: 0 | U153: 0 | V153: 1 | W153: 0 | X153: 0 | Y153: 0 | Z153: 0
G154: 0 | H154: - | J154: 0 | N154: 0 | O154: 0 | Q154: 0 | T154: 0 | U154: 0 | V154: 1 | W154: 0 | X154: 0 | Y154: 0 | Z154: 0
G155: 0 | H155: - | J155: 0 | N155: 0 | O155: 0 | Q155: 0 | T155: 0 | U155: 0 | V155: 1 | W155: 0 | X155: 0 | Y155: 0 | Z155: 0
G156: 0 | H156: - | J156: 0 | N156: 0 | O156: 0 | Q156: 0 | T156: 0 | U156: 0 | V156: 1 | W156: 0 | X156: 0 | Y156: 0 | Z156: 0
G157: 0 | H157: - | J157: 0 | N157: 0 | O157: 0 | Q157: 0 | T157: 0 | U157: 0 | V157: 1 | W157: 0 | X157: 0 | Y157: 0 | Z157: 0
G158: 0 | H158: - | J158: 0 | N158: 0 | O158: 0 | Q158: 0 | T158: 0 | U158: 0 | V158: 1 | W158: 0 | X158: 0 | Y158: 0 | Z158: 0
G159: =IF(AND(F159<>0,$D$31<>0),F159/$D$31,0) -> 0 | H159: - | J159: 0 | N159: 0 | O159: 0 | Q159: 0 | T159: 0 | U159: 0 | V159: 1 | W159: 0 | X159: 0 | Y159: 0 | Z159: 0
G160: =IF(AND(F160<>0,$D$31<>0),F160/$D$31,0) -> 0 | H160: - | J160: 0 | N160: 0 | O160: 0 | Q160: 0 | T160: 0 | U160: 0 | V160: 1 | W160: 0 | X160: 0 | Y160: 0 | Z160: 0
G161: =IF(AND(F161<>0,$D$31<>0),F161/$D$31,0) -> 0 | H161: - | J161: 0 | N161: 0 | O161: 0 | Q161: 0 | T161: 0 | U161: 0 | V161: 1 | W161: 0 | X161: 0 | Y161: 0 | Z161: 0
G162: =IF(AND(F162<>0,$D$31<>0),F162/$D$31,0) -> 0 | H162: - | J162: 0 | N162: 0 | O162: 0 | Q162: 0 | T162: 0 | U162: 0 | V162: 1 | W162: 0 | X162: 0 | Y162: 0 | Z162: 0
G163: 0 | H163: - | J163: 0 | N163: 0 | O163: 0 | Q163: 0 | T163: 0 | U163: 0 | V163: 1 | W163: 0 | X163: 0 | Y163: 0 | Z163: 0
G164: 0 | H164: - | J164: =I164*F164 -> 0 | N164: 0 | O164: 0 | Q164: 0 | T164: 0 | U164: 0 | V164: 1 | W164: 0 | X164: 0 | Y164: 0 | Z164: 0
B165: 2.3 | C165: Superstructure: Roof | E165: - | F165: =SUM(F166:F185) -> 0 | G165: =IF(AND(F165<>0,$D$31<>0),F165/$D$31,0) -> 0 | H165: =IF(AND('Detailed Application Stage'!G218<>0,'Post-Construction Stage'!G165<>0),IF('Detailed Application Stage'!G218='Post-Construction Stage'!G165,"Equal to planning stage estimate",IF('Detailed Application Stage'!G218<'Post-Construction Stage'!G165,"Greater than planning stage estimate","Less than planning stage estimate")),"") ->  | I165: - | J165: =SUM(J166:J185) -> 0 | K165: - | L165: - | M165: - | N165: - | O165: =SUM(O166:O185) -> 0 | P165: - | Q165: =SUM(Q166:Q185) -> 0 | R165: - | S165: - | T165: =IF(W165<>0,W165/($F$218+$O$218),0) -> 0 | U165: =IF(Y165<>0,Y165/($F$218+$O$218),0) -> 0 | V165: 1 | W165: =SUM(W166:W185) -> 0 | X165: 0 | Y165: =SUM(Y166:Y185) -> 0 | Z165: 0
B166: 2.3 | C166: Superstructure: Roof | G166: =IF(AND(F166<>0,$D$31<>0),F166/$D$31,0) -> 0 | H166: - | J166: =I166*F166 -> 0 | N166: 0 | O166: 0 | Q166: 0 | T166: 0 | U166: 0 | V166: 1 | W166: 0 | X166: 0 | Y166: 0 | Z166: 0
G167: =IF(AND(F167<>0,$D$31<>0),F167/$D$31,0) -> 0 | H167: - | J167: 0 | N167: 0 | O167: 0 | Q167: 0 | T167: 0 | U167: 0 | V167: 1 | W167: 0 | X167: 0 | Y167: 0 | Z167: 0
G168: =IF(AND(F168<>0,$D$31<>0),F168/$D$31,0) -> 0 | H168: - | J168: 0 | N168: =IF(M168<>0,INT(60/M168),0) -> 0 | O168: =N168*I168 -> 0 | Q168: =P168*M168 -> 0 | T168: 0 | U168: 0 | V168: =1-T168-U168 -> 1 | W168: =T168*(F168+O168) -> 0 | X168: =IF(AND(W168<>0,$D$31<>0),W168/$D$31,0) -> 0 | Y168: =U168*(F168+O168) -> 0 | Z168: 0
G169: 0 | H169: - | J169: 0 | N169: 0 | O169: 0 | Q169: 0 | T169: 0 | U169: 0 | V169: 1 | W169: 0 | X169: 0 | Y169: 0 | Z169: 0
G170: 0 | H170: - | J170: 0 | N170: 0 | O170: 0 | Q170: 0 | T170: 0 | U170: 0 | V170: 1 | W170: 0 | X170: 0 | Y170: 0 | Z170: 0
G171: 0 | H171: - | J171: 0 | N171: 0 | O171: 0 | Q171: 0 | T171: 0 | U171: 0 | V171: 1 | W171: 0 | X171: 0 | Y171: 0 | Z171: 0
G172: 0 | H172: - | J172: 0 | N172: 0 | O172: 0 | Q172: 0 | T172: 0 | U172: 0 | V172: 1 | W172: 0 | X172: 0 | Y172: 0 | Z172: 0
G173: 0 | H173: - | J173: 0 | N173: 0 | O173: 0 | Q173: 0 | T173: 0 | U173: 0 | V173: 1 | W173: 0 | X173: 0 | Y173: 0 | Z173: 0
G174: 0 | H174: - | J174: 0 | N174: 0 | O174: 0 | Q174: 0 | T174: 0 | U174: 0 | V174: 1 | W174: 0 | X174: 0 | Y174: 0 | Z174: 0
G175: 0 | H175: - | J175: 0 | N175: 0 | O175: 0 | Q175: 0 | T175: 0 | U175: 0 | V175: 1 | W175: 0 | X175: 0 | Y175: 0 | Z175: 0
G176: 0 | H176: - | J176: 0 | N176: 0 | O176: 0 | Q176: 0 | T176: 0 | U176: 0 | V176: 1 | W176: 0 | X176: 0 | Y176: 0 | Z176: 0
G177: 0 | H177: - | J177: 0 | N177: 0 | O177: 0 | Q177: 0 | T177: 0 | U177: 0 | V177: 1 | W177: 0 | X177: 0 | Y177: 0 | Z177: 0
G178: 0 | H178: - | J178: 0 | N178: 0 | O178: 0 | Q178: 0 | T178: 0 | U178: 0 | V178: 1 | W178: 0 | X178: 0 | Y178: 0 | Z178: 0
G179: 0 | H179: - | J179: 0 | N179: 0 | O179: 0 | Q179: 0 | T179: 0 | U179: 0 | V179: 1 | W179: 0 | X179: 0 | Y179: 0 | Z179: 0
G180: =IF(AND(F180<>0,$D$31<>0),F180/$D$31,0) -> 0 | H180: - | J180: 0 | N180: 0 | O180: 0 | Q180: 0 | T180: 0 | U180: 0 | V180: 1 | W180: 0 | X180: 0 | Y180: 0 | Z180: 0
G181: =IF(AND(F181<>0,$D$31<>0),F181/$D$31,0) -> 0 | H181: - | J181: 0 | N181: 0 | O181: 0 | Q181: 0 | T181: 0 | U181: 0 | V181: 1 | W181: 0 | X181: 0 | Y181: 0 | Z181: 0
G182: =IF(AND(F182<>0,$D$31<>0),F182/$D$31,0) -> 0 | H182: - | J182: 0 | N182: 0 | O182: 0 | Q182: 0 | T182: 0 | U182: 0 | V182: 1 | W182: 0 | X182: 0 | Y182: 0 | Z182: 0
G183: =IF(AND(F183<>0,$D$31<>0),F183/$D$31,0) -> 0 | H183: - | J183: 0 | N183: 0 | O183: 0 | Q183: 0 | T183: 0 | U183: 0 | V183: 1 | W183: 0 | X183: 0 | Y183: 0 | Z183: 0
G184: 0 | H184: - | J184: 0 | N184: 0 | O184: 0 | Q184: 0 | T184: 0 | U184: 0 | V184: 1 | W184: 0 | X184: 0 | Y184: 0 | Z184: 0
G185: 0 | H185: - | J185: 0 | N185: 0 | O185: 0 | Q185: 0 | T185: 0 | U185: 0 | V185: 1 | W185: 0 | X185: 0 | Y185: 0 | Z185: 0
B186: 2.4 | C186: Superstructure: Stairs and Ramps | E186: - | F186: =SUM(F187:F201) -> 0 | G186: =IF(AND(F186<>0,$D$31<>0),F186/$D$31,0) -> 0 | H186: - | I186: - | J186: =SUM(J187:J201) -> 0 | K186: - | L186: - | M186: - | N186: - | O186: =SUM(O187:O201) -> 0 | P186: - | Q186: =SUM(Q187:Q201) -> 0 | R186: - | S186: - | T186: =IF(W186<>0,W186/($F$239+$O$239),0) -> 0 | U186: =IF(Y186<>0,Y186/($F$239+$O$239),0) -> 0 | V186: 1 | W186: =SUM(W187:W201) -> 0 | X186: 0 | Y186: =SUM(Y187:Y201) -> 0 | Z186: 0
B187: 2.4 | C187: Superstructure: Stairs and Ramps | G187: =IF(AND(F187<>0,$D$31<>0),F187/$D$31,0) -> 0 | H187: - | J187: =I187*F187 -> 0 | N187: 0 | O187: 0 | Q187: 0 | T187: 0 | U187: 0 | V187: 1 | W187: 0 | X187: 0 | Y187: 0 | Z187: 0
G188: =IF(AND(F188<>0,$D$31<>0),F188/$D$31,0) -> 0 | H188: - | J188: 0 | N188: 0 | O188: 0 | Q188: 0 | T188: 0 | U188: 0 | V188: 1 | W188: 0 | X188: 0 | Y188: 0 | Z188: 0
G189: =IF(AND(F189<>0,$D$31<>0),F189/$D$31,0) -> 0 | H189: - | J189: 0 | N189: 0 | O189: 0 | Q189: 0 | T189: 0 | U189: 0 | V189: 1 | W189: 0 | X189: 0 | Y189: 0 | Z189: 0
G190: 0 | H190: - | J190: 0 | N190: 0 | O190: 0 | Q190: 0 | T190: 0 | U190: 0 | V190: 1 | W190: 0 | X190: 0 | Y190: 0 | Z190: 0
G191: 0 | H191: - | J191: 0 | N191: 0 | O191: 0 | Q191: 0 | T191: 0 | U191: 0 | V191: 1 | W191: 0 | X191: 0 | Y191: 0 | Z191: 0
G192: 0 | H192: - | J192: 0 | N192: 0 | O192: 0 | Q192: 0 | T192: 0 | U192: 0 | V192: 1 | W192: 0 | X192: 0 | Y192: 0 | Z192: 0
G193: 0 | H193: - | J193: 0 | N193: 0 | O193: 0 | Q193: 0 | T193: 0 | U193: 0 | V193: 1 | W193: 0 | X193: 0 | Y193: 0 | Z193: 0
G194: 0 | H194: - | J194: 0 | N194: 0 | O194: 0 | Q194: 0 | T194: 0 | U194: 0 | V194: 1 | W194: 0 | X194: 0 | Y194: 0 | Z194: 0
G195: 0 | H195: - | J195: 0 | N195: 0 | O195: 0 | Q195: 0 | T195: 0 | U195: 0 | V195: 1 | W195: 0 | X195: 0 | Y195: 0 | Z195: 0
G196: 0 | H196: - | J196: 0 | N196: 0 | O196: 0 | Q196: 0 | T196: 0 | U196: 0 | V196: 1 | W196: 0 | X196: 0 | Y196: 0 | Z196: 0
G197: 0 | H197: - | J197: 0 | N197: 0 | O197: 0 | Q197: 0 | T197: 0 | U197: 0 | V197: 1 | W197: 0 | X197: 0 | Y197: 0 | Z197: 0
G198: 0 | H198: - | J198: 0 | N198: 0 | O198: 0 | Q198: 0 | T198: 0 | U198: 0 | V198: 1 | W198: 0 | X198: 0 | Y198: 0 | Z198: 0
G199: 0 | H199: - | J199: 0 | N199: 0 | O199: 0 | Q199: 0 | T199: 0 | U199: 0 | V199: 1 | W199: 0 | X199: 0 | Y199: 0 | Z199: 0
G200: 0 | H200: - | J200: 0 | N200: 0 | O200: 0 | Q200: 0 | T200: 0 | U200: 0 | V200: 1 | W200: 0 | X200: 0 | Y200: 0 | Z200: 0
G201: =IF(AND(F201<>0,$D$31<>0),F201/$D$31,0) -> 0 | H201: - | J201: 0 | N201: 0 | O201: 0 | Q201: 0 | T201: 0 | U201: 0 | V201: 1 | W201: 0 | X201: 0 | Y201: 0 | Z201: 0
B202: 2.5 | C202: Superstructure: External Walls | E202: - | F202: =SUM(F203:F222) -> 0 | G202: =IF(AND(F202<>0,$D$31<>0),F202/$D$31,0) -> 0 | H202: =IF(AND('Detailed Application Stage'!G255<>0,'Post-Construction Stage'!G202<>0),IF('Detailed Application Stage'!G255='Post-Construction Stage'!G202,"Equal to planning stage estimate",IF('Detailed Application Stage'!G255<'Post-Construction Stage'!G202,"Greater than planning stage estimate","Less than planning stage estimate")),"") ->  | I202: - | J202: =SUM(J203:J222) -> 0 | K202: - | L202: - | M202: - | N202: - | O202: =SUM(O203:O222) -> 0 | P202: - | Q202: =SUM(Q203:Q222) -> 0 | R202: - | S202: - | T202: =IF(W202<>0,W202/($F$255+$O$255),0) -> 0 | U202: =IF(Y202<>0,Y202/($F$255+$O$255),0) -> 0 | V202: 1 | W202: =SUM(W203:W222) -> 0 | X202: 0 | Y202: =SUM(Y203:Y222) -> 0 | Z202: 0
B203: 2.5 | C203: Superstructure: External Walls | G203: =IF(AND(F203<>0,$D$31<>0),F203/$D$31,0) -> 0 | H203: - | J203: =I203*F203 -> 0 | N203: 0 | O203: 0 | Q203: 0 | T203: 0 | U203: 0 | V203: 1 | W203: 0 | X203: 0 | Y203: 0 | Z203: 0
G204: =IF(AND(F204<>0,$D$31<>0),F204/$D$31,0) -> 0 | H204: - | J204: 0 | N204: 0 | O204: 0 | Q204: 0 | T204: 0 | U204: 0 | V204: 1 | W204: 0 | X204: 0 | Y204: 0 | Z204: 0
G205: =IF(AND(F205<>0,$D$31<>0),F205/$D$31,0) -> 0 | H205: - | J205: 0 | N205: 0 | O205: 0 | Q205: 0 | T205: 0 | U205: 0 | V205: 1 | W205: 0 | X205: 0 | Y205: 0 | Z205: 0
G206: 0 | H206: - | J206: 0 | N206: 0 | O206: 0 | Q206: 0 | T206: 0 | U206: 0 | V206: 1 | W206: 0 | X206: 0 | Y206: 0 | Z206: 0
... 229 more rows

Sheet Drop- down list (hidden)
A1: Number of Use Types | B1: Yes/No | C1: Layers | D1: Building element category reference | E1: Building element category | F1: Other
A2: 1 | B2: Yes | C2: Site | D2: 0.1 | E2: Demolition: Toxic/Hazardous/Contaminated Material Treatment | F2: It is accepted that the Reserved Matters Reporting will be conditioned
A3: 2 | B3: No | C3: Substructure | D3: 0.2 | E3: Major Demolition Works | F3: It is accepted that the Post Construction Reporting will be conditioned
A4: 3 | B4: Yes, in whole | C4: Super- Structure | D4: 0.3 | E4: Temporary Support to Adjacent Structures
A5: 4 | B5: Yes, in part | C5: Shell/ Skin | D5: 0.4 | E5: Specialist Ground Works
A6: 5 | B6: No | C6: Services | D6: 1 | E6: Substructure
A7: 6 | C7: Space | D7: 2.1 | E7: Superstructure: Frame
A8: 7 | C8: Stuff | D8: 2.2 | E8: Superstructure: Upper Floors
A9: 8 | C9: Construction Stuff | D9: 2.3 | E9: Superstructure: Roof
A10: 9 | D10: 2.4 | E10: Superstructure: Stairs and Ramps
A11: 10 | C11: Yes | D11: 2.5 | E11: Superstructure: External Walls
A12: 11 | C12: No | D12: 2.6 | E12: Superstructure: Windows and External Doors
A13: 12 | D13: 2.7 | E13: Superstructure: Internal Walls and Partitions
A14: 13 | D14: 2.8 | E14: Superstructure: Internal Doors
A15: 14 | D15: 3 | E15: Finishes
A16: 15 | D16: 4 | E16: Fittings, furnishings & equipment (FFE)
D17: 5 | E17: Services (MEP)
D18: 6 | E18: Prefabricated Buildings and Building Units
D19: 7 | E19: Work to Existing Building
D20: 8 | E20: External works
